{"text_format":"1","workbook":"xlsx","n_sheets":16,"sheets":["Front page","Surface Fungi data","Surface Fungi results","Materials data","Materials results","Surface Bacteria data","Surface Bacteria results","Air Fungi analysis","Air Fungi data","Air Fungi results","Air Allergen analysis","Air Allergen data","Air Allergen results","Air FAI analysis","Air FAI data","Air FAI results"],"not_rendered":{"charts":0,"images":7,"macros":1,"external_links":0,"defined_names":20,"comments":3,"pivot_tables":0},"unopened":[],"bounds":{"document_bytes":16777216,"sheet_cells":100000,"rows_first":2000,"rows_last":500,"rows_between":2000,"halvings":0,"cell_chars":16384,"cell_head_chars":4096},"cells_cut":0,"cells_raw":0,"read":"whole","date_system":"1900"}

{"sheet":"Front page","index":0,"n_rows":40,"n_cols":10,"rows_kept":40,"cut":false,"hidden":false,"merged":[[0,4,0,8],[19,9,19,10],[19,2,19,3]]}
[]
[]
[]
[]
[]
[]
[]
[]
[]
[]
[]
[]
[]
[]
[]
[]
[]
[]
[]
[null,null,"Order",null,null,null,null,null,null,"Contact Mycometer"]
[]
[]
[]
[]
[]
[]
[]
[]
[]
[]
[]
[]
[]
[]
[]
[]
[]
[]
[]
["Version US February 2022, copyright © Mycometer A/S, all rights reserved"]

{"sheet":"Surface Fungi data","index":1,"n_rows":64,"n_cols":8,"rows_kept":64,"cut":false,"hidden":false,"merged":[[25,4,25,6],[26,4,26,6],[27,4,27,6],[28,4,28,6],[3,3,3,4],[8,1,8,3],[9,1,9,3],[10,1,10,3],[11,1,11,3],[12,1,12,3],[13,1,13,3],[14,1,14,3],[15,1,15,3],[16,1,16,3],[17,1,17,3],[18,1,18,3]]}
[]
["Kvantificering af skimmelsvamp på overflader "]
["Mycometer®-surface"]
["Project number:",null,null,{"$f":"IF(H5=0,\"\",IF(AND(H4/H5<=1.02,H4/H5>=0.98),\"Instrument is calibrated\",\"Calibrate instrument!\"))","v":""},null,null,"Measured standard value:"]
["Address:",null,null,null,null,null,"Standard value of instrument (STD VAL):"]
["Sampled by:",null,null,null,null,null,"Room temperature when analyzing (between 64.4 and 86°F):"]
["Sampling date:",null,"mm-dd-yy                                        ",null,null,null,"Reaction time (min:sec):",{"$f":"IF(H6=0,\"\",IF(H6<64.4,\"error\",IF(H6>86,\"error\",TEXT(((217.42/EXP(-5798*(1/((H6+459.67)*5/9))+24.96)*30)/60)/24,\"mm:ss\"))))","v":""}]
[]
["Sample ID","Test site",null,null,"Blank value (BV)","Analysis value (AV)","Mycometer value (MSFV)","Result category"]
[null,null,null,null,null,null,{"$f":"IF(OR(E10=\"\",F10=\"\"),\"\",F10-E10)","v":""},{"$f":"IF(F10=0,\"\",IF(E10=0,\"\",IF(G10<=20.4999,\"A\",IF(G10<=135.4999,\"B\",IF(G10>=135.5,\"C\")))))","v":""}]
[null,null,null,null,null,null,{"$f":"IF(OR(E11=\"\",F11=\"\"),\"\",F11-E11)","v":""},{"$f":"IF(F11=0,\"\",IF(E11=0,\"\",IF(G11<=20.4999,\"A\",IF(G11<=135.4999,\"B\",IF(G11>=135.5,\"C\")))))","v":""}]
[null,null,null,null,null,null,"",""]
[null,null,null,null,null,null,"",""]
[null,null,null,null,null,null,"",""]
[null,null,null,null,null,null,"",""]
[null,null,null,null,null,null,"",""]
[null,null,null,null,null,null,"",""]
[null,null,null,null,null,null,"",""]
[null,null,null,null,null,null,"",""]
[null,null,null,null,"MSFV = Mycometer surface Fungi value"]
[]
[]
[]
[]
[]
[null,null,null,"Analyzed by:"]
[null,null,null,"Date of analysis:"]
[null,null,null,"Company name:"]
[null,null,null,"Mycometer certification number: "]
[]
[]
[]
[]
[]
[]
[]
[]
[]
[]
[]
[]
[]
[]
[]
[]
[]
[]
[]
[]
[]
[]
[]
[]
[]
[]
[]
[]
[]
[]
[]
[]
[]
[]
[{"$f":"'Front page'!A40","v":"Version US February 2022, copyright © Mycometer A/S, all rights reserved"}]

{"sheet":"Surface Fungi results","index":2,"n_rows":37,"n_cols":8,"rows_kept":37,"cut":false,"hidden":false,"merged":[[18,1,18,3],[19,1,19,3],[6,5,6,7],[13,1,13,3],[14,1,14,3],[15,1,15,3],[16,1,16,3],[17,1,17,3],[5,6,5,7],[4,6,4,7],[4,4,4,5],[8,5,8,7],[33,1,35,7],[30,1,32,7],[27,1,29,7],[26,1,26,7],[25,0,25,7],[21,5,21,7],[22,5,22,7],[23,5,23,7],[9,1,9,3],[10,1,10,3],[11,1,11,3],[12,1,12,3]]}
[]
[]
[]
[]
[null,"Project number:",{"$f":"'Surface Fungi data'!B4","v":0},null,"Sampling date:",null,{"$f":"'Surface Fungi data'!B7","v":"00:00:00"}]
[null,"Address:",{"$f":"'Surface Fungi data'!B5","v":0},null,null,"Date of analysis:",{"$f":"'Surface Fungi data'!E27","v":"00:00:00"}]
[null,"Sampled by:",{"$f":"'Surface Fungi data'!B6","v":0},null,null,{"$f":"IF('Surface Fungi data'!D4=\"\",\"\",IF('Surface Fungi data'!D4=\"Instrument is calibrated\",\"Instrument was calibrated\",\"Instrument was not calibrated\"))","v":""}]
[null,"Notes:"]
[null,null,null,null,null,"Result category"]
["Sample ID","Test site",null,null,"Mycometer value (MSFV)","A","B","C"]
[{"$f":"'Surface Fungi data'!A10","v":0},{"$f":"IF('Surface Fungi data'!B10=0,\"\",'Surface Fungi data'!B10)","v":""},null,null,{"$f":"IF('Surface Fungi data'!G10=\"\",\"\",'Surface Fungi data'!G10)","v":""},{"$f":"IF('Surface Fungi data'!H10=\"a\",\"X\",\"\")","v":""},{"$f":"IF('Surface Fungi data'!H10=\"b\",\"X\",\"\")","v":""},{"$f":"IF('Surface Fungi data'!H10=\"c\",\"X\",\"\")","v":""}]
[{"$f":"'Surface Fungi data'!A11","v":0},{"$f":"IF('Surface Fungi data'!B11=0,\"\",'Surface Fungi data'!B11)","v":""},null,null,{"$f":"IF('Surface Fungi data'!G11=\"\",\"\",'Surface Fungi data'!G11)","v":""},{"$f":"IF('Surface Fungi data'!H11=\"a\",\"X\",\"\")","v":""},{"$f":"IF('Surface Fungi data'!H11=\"b\",\"X\",\"\")","v":""},{"$f":"IF('Surface Fungi data'!H11=\"c\",\"X\",\"\")","v":""}]
[{"$f":"'Surface Fungi data'!A12","v":0},{"$f":"IF('Surface Fungi data'!B12=0,\"\",'Surface Fungi data'!B12)","v":""},null,null,{"$f":"IF('Surface Fungi data'!G12=\"\",\"\",'Surface Fungi data'!G12)","v":""},{"$f":"IF('Surface Fungi data'!H12=\"a\",\"X\",\"\")","v":""},{"$f":"IF('Surface Fungi data'!H12=\"b\",\"X\",\"\")","v":""},{"$f":"IF('Surface Fungi data'!H12=\"c\",\"X\",\"\")","v":""}]
[{"$f":"'Surface Fungi data'!A13","v":0},{"$f":"IF('Surface Fungi data'!B13=0,\"\",'Surface Fungi data'!B13)","v":""},null,null,{"$f":"IF('Surface Fungi data'!G13=\"\",\"\",'Surface Fungi data'!G13)","v":""},{"$f":"IF('Surface Fungi data'!H13=\"a\",\"X\",\"\")","v":""},{"$f":"IF('Surface Fungi data'!H13=\"b\",\"X\",\"\")","v":""},{"$f":"IF('Surface Fungi data'!H13=\"c\",\"X\",\"\")","v":""}]
[{"$f":"'Surface Fungi data'!A14","v":0},{"$f":"IF('Surface Fungi data'!B14=0,\"\",'Surface Fungi data'!B14)","v":""},null,null,{"$f":"IF('Surface Fungi data'!G14=\"\",\"\",'Surface Fungi data'!G14)","v":""},{"$f":"IF('Surface Fungi data'!H14=\"a\",\"X\",\"\")","v":""},{"$f":"IF('Surface Fungi data'!H14=\"b\",\"X\",\"\")","v":""},{"$f":"IF('Surface Fungi data'!H14=\"c\",\"X\",\"\")","v":""}]
[{"$f":"'Surface Fungi data'!A15","v":0},{"$f":"IF('Surface Fungi data'!B15=0,\"\",'Surface Fungi data'!B15)","v":""},null,null,{"$f":"IF('Surface Fungi data'!G15=\"\",\"\",'Surface Fungi data'!G15)","v":""},{"$f":"IF('Surface Fungi data'!H15=\"a\",\"X\",\"\")","v":""},{"$f":"IF('Surface Fungi data'!H15=\"b\",\"X\",\"\")","v":""},{"$f":"IF('Surface Fungi data'!H15=\"c\",\"X\",\"\")","v":""}]
[{"$f":"'Surface Fungi data'!A16","v":0},{"$f":"IF('Surface Fungi data'!B16=0,\"\",'Surface Fungi data'!B16)","v":""},null,null,{"$f":"IF('Surface Fungi data'!G16=\"\",\"\",'Surface Fungi data'!G16)","v":""},{"$f":"IF('Surface Fungi data'!H16=\"a\",\"X\",\"\")","v":""},{"$f":"IF('Surface Fungi data'!H16=\"b\",\"X\",\"\")","v":""},{"$f":"IF('Surface Fungi data'!H16=\"c\",\"X\",\"\")","v":""}]
[{"$f":"'Surface Fungi data'!A17","v":0},{"$f":"IF('Surface Fungi data'!B17=0,\"\",'Surface Fungi data'!B17)","v":""},null,null,{"$f":"IF('Surface Fungi data'!G17=\"\",\"\",'Surface Fungi data'!G17)","v":""},{"$f":"IF('Surface Fungi data'!H17=\"a\",\"X\",\"\")","v":""},{"$f":"IF('Surface Fungi data'!H17=\"b\",\"X\",\"\")","v":""},{"$f":"IF('Surface Fungi data'!H17=\"c\",\"X\",\"\")","v":""}]
[{"$f":"'Surface Fungi data'!A18","v":0},{"$f":"IF('Surface Fungi data'!B18=0,\"\",'Surface Fungi data'!B18)","v":""},null,null,{"$f":"IF('Surface Fungi data'!G18=\"\",\"\",'Surface Fungi data'!G18)","v":""},{"$f":"IF('Surface Fungi data'!H18=\"a\",\"X\",\"\")","v":""},{"$f":"IF('Surface Fungi data'!H18=\"b\",\"X\",\"\")","v":""},{"$f":"IF('Surface Fungi data'!H18=\"c\",\"X\",\"\")","v":""}]
[{"$f":"'Surface Fungi data'!A19","v":0},{"$f":"IF('Surface Fungi data'!B19=0,\"\",'Surface Fungi data'!B19)","v":""},null,null,{"$f":"IF('Surface Fungi data'!G19=\"\",\"\",'Surface Fungi data'!G19)","v":""},{"$f":"IF('Surface Fungi data'!H19=\"a\",\"X\",\"\")","v":""},{"$f":"IF('Surface Fungi data'!H19=\"b\",\"X\",\"\")","v":""},{"$f":"IF('Surface Fungi data'!H19=\"c\",\"X\",\"\")","v":""}]
[null,null,null,null,"MSFV = Mycometer surface Fungi value"]
[null,null,null,null,"Analyzed by:",{"$f":"'Surface Fungi data'!E26","v":0}]
[null,null,null,null,"Company name: ",{"$f":"'Surface Fungi data'!E28","v":0}]
[null,null,null,null,"Mycometer certification number: ",{"$f":"'Surface Fungi data'!E29","v":0}]
[]
["Mycometer surface Fungi"]
["MSF value","Interpretation - Fungal level on surfaces"]
["A","The level of fungi on the surface is within the normal range and corresponds to the level found on visually clean surfaces in buildings with no visual (or smell) signs of fungal growth or moisture problems. Category A is the success criteria for post remediation clearance."]
["Normal"]
["≤20"]
["B","The level of fungi on the surface is elevated and corresponds to the level found on visually dusty/dirty surfaces in buildings without mold/moisture problems. It is indicative of a reservoir of fungal particles accumulating in the dust because of insufficient cleaning. It can also be due to low density growth or old dried out fungal growth (dead) due to reduction in enzyme activity."]
["Elevated"]
["21-135"]
["C","The level of fungi is high above the normal background level and above the levels found in normal household dust. A category C result means that there is fungal growth on the surface."]
["High"]
[">135"]
[{"$f":"'Front page'!A40","v":"Version US February 2022, copyright © Mycometer A/S, all rights reserved"}]

{"sheet":"Materials data","index":3,"n_rows":33,"n_cols":10,"rows_kept":33,"cut":false,"hidden":false,"merged":[[1,0,1,9],[2,0,2,9],[9,1,9,3],[10,1,10,3],[11,1,11,3],[19,1,19,3],[25,8,25,10],[26,8,26,10],[27,8,27,10],[4,3,4,5],[12,1,12,3],[13,1,13,3],[14,1,14,3],[15,1,15,3],[16,1,16,3],[17,1,17,3],[18,1,18,3]]}
[]
[]
[]
["Project number:",null,null,null,null,null,null,null,"Measured standard value:"]
["Address:",null,null,{"$f":"IF(J5=0,\"\",IF(AND(J4/J5<=1.02,J4/J5>=0.98),\"Instrument is calibrated\",\"Calibrate instrument!\"))","v":""},null,null,null,null,"Standard value of instrument (STD VAL):"]
["Sampled by:",null,null,null,null,null,null,null,"Room temperature when analyzing (between 64.4 and 86°F):"]
["Date of analysis:",null,"mm-dd-yy                                               ",null,null,null,null,null,"Reaction time (min:sec):",{"$f":"IF(J6=0,\"\",IF(J6<64.4,\"error\",IF(J6>86,\"error\",TEXT(((217.42/EXP(-5798*(1/((J6+459.67)*5/9))+24.96)*30)/60)/24,\"mm:ss\"))))","v":""}]
["Sampling date:",null,"mm-dd-yy                                               "]
[]
["Sample ID","Test site",null,null,"Material type (i or c)","Weight (mg)","Blank value (BV)","Analysis value (AV)","Mycometer value (MMV)","Result category"]
[null,null,null,null,null,null,null,null,{"$f":"IF(F11=0,\"\",IF(E11=\"I\",(H11-G11)/(F11/100),(H11-G11)/(F11/300)))","v":""},{"$f":"IF(H11=0,\"\",IF(E11=\"I\",IF(I11<=45.4999,\"A\",IF(I11<=135.4999,\"B\",IF(I11>=135.5,\"C\"))),IF(E11=\"c\",IF(I11<=45.4999,\"A\",IF(I11<=160.4999,\"B\",IF(I11>=161.5,\"C\"))))))","v":""}]
[null,null,null,null,null,null,null,null,{"$f":"IF(F12=0,\"\",IF(E12=\"I\",(H12-G12)/(F12/100),(H12-G12)/(F12/300)))","v":""},{"$f":"IF(H12=0,\"\",IF(E12=\"I\",IF(I12<=45.4999,\"A\",IF(I12<=135.4999,\"B\",IF(I12>=135.5,\"C\"))),IF(E12=\"c\",IF(I12<=45.4999,\"A\",IF(I12<=160.4999,\"B\",IF(I12>=161.5,\"C\"))))))","v":""}]
[null,null,null,null,null,null,null,null,"",""]
[null,null,null,null,null,null,null,null,"",""]
[null,null,null,null,null,null,null,null,"",""]
[null,null,null,null,null,null,null,null,"",""]
[null,null,null,null,null,null,null,null,"",""]
[null,null,null,null,null,null,null,null,"",""]
[null,null,null,null,null,null,null,null,"",""]
[null,null,null,null,null,null,null,null,"",""]
[]
[null,null,null,null,"insulation","approx. 100mg"]
[null,null,null,null,"cement","approx. 300mg"]
[]
[]
["MMV = Mycometer material value",null,null,null,null,null,null,"Analyzed by: "]
[null,null,null,null,null,null,null,"Company name: "]
["Insulation - includes ceiling tiles, fiberglass, mineral wool etc.",null,null,null,null,null,null,"Mycometer certification number: "]
["Cement - includes gypsum, mortar, concrete, grout etc."]
[]
[]
[]
[{"$f":"'Front page'!A40","v":"Version US February 2022, copyright © Mycometer A/S, all rights reserved"}]

{"sheet":"Materials results","index":4,"n_rows":62,"n_cols":7,"rows_kept":62,"cut":false,"hidden":false,"merged":[[59,1,61,6],[56,1,58,6],[53,1,55,6],[50,0,50,6],[52,1,52,6],[51,1,51,6],[51,0,52,0],[42,1,44,6],[45,1,47,6],[37,0,38,0],[36,0,36,6],[37,1,37,6],[38,1,38,6],[39,1,41,6],[25,4,25,6],[26,4,26,6],[27,4,27,6],[1,0,1,6],[2,0,2,6],[6,4,6,6],[4,5,4,6],[3,5,3,6],[5,4,5,6]]}
[]
[]
[]
["Project number:",{"$f":"'Materials data'!B4","v":0},null,null,"Sampling date:",{"$f":"'Materials data'!B8","v":"00:00:00"}]
["Address:",{"$f":"'Materials data'!B5","v":0},null,null,"Date of analysis:",{"$f":"'Materials data'!B7","v":"00:00:00"}]
["Sampled by:",{"$f":"'Materials data'!B6","v":0},null,null,{"$f":"IF('Materials data'!D5=\"\",\"\",IF('Materials data'!D5=\"Instrument is calibrated\",\"Instrument was calibrated\",\"Instrument was not calibrated\"))","v":""}]
["Notes:",null,null,null,"Result category"]
["Sample ID","Test site","Material type","Mycometer value (MMV)","A","B","C"]
[{"$f":"'Materials data'!A11","v":0},{"$f":"'Materials data'!B11","v":0},{"$f":"IF('Materials data'!E11=\"c\",\"Cement\",IF('Materials data'!E11=\"i\",\"Insulation\",))","v":0},{"$f":"'Materials data'!I11","v":""},{"$f":"IF('Materials data'!J11=\"a\",\"X\",\"\")","v":""},{"$f":"IF('Materials data'!J11=\"b\",\"X\",\"\")","v":""},{"$f":"IF('Materials data'!J11=\"c\",\"X\",\"\")","v":""}]
[{"$f":"'Materials data'!A12","v":0},{"$f":"'Materials data'!B12","v":0},{"$f":"IF('Materials data'!E12=\"c\",\"Cement\",IF('Materials data'!E12=\"i\",\"Insulation\",))","v":0},{"$f":"'Materials data'!I12","v":""},{"$f":"IF('Materials data'!J12=\"a\",\"X\",\"\")","v":""},{"$f":"IF('Materials data'!J12=\"b\",\"X\",\"\")","v":""},{"$f":"IF('Materials data'!J12=\"c\",\"X\",\"\")","v":""}]
[{"$f":"'Materials data'!A13","v":0},{"$f":"'Materials data'!B13","v":0},{"$f":"IF('Materials data'!E13=\"c\",\"Cement\",IF('Materials data'!E13=\"i\",\"Insulation\",))","v":0},{"$f":"'Materials data'!I13","v":""},{"$f":"IF('Materials data'!J13=\"a\",\"X\",\"\")","v":""},{"$f":"IF('Materials data'!J13=\"b\",\"X\",\"\")","v":""},{"$f":"IF('Materials data'!J13=\"c\",\"X\",\"\")","v":""}]
[{"$f":"'Materials data'!A14","v":0},{"$f":"'Materials data'!B14","v":0},{"$f":"IF('Materials data'!E14=\"c\",\"Cement\",IF('Materials data'!E14=\"i\",\"Insulation\",))","v":0},{"$f":"'Materials data'!I14","v":""},{"$f":"IF('Materials data'!J14=\"a\",\"X\",\"\")","v":""},{"$f":"IF('Materials data'!J14=\"b\",\"X\",\"\")","v":""},{"$f":"IF('Materials data'!J14=\"c\",\"X\",\"\")","v":""}]
[{"$f":"'Materials data'!A15","v":0},{"$f":"'Materials data'!B15","v":0},{"$f":"IF('Materials data'!E15=\"c\",\"Cement\",IF('Materials data'!E15=\"i\",\"Insulation\",))","v":0},{"$f":"'Materials data'!I15","v":""},{"$f":"IF('Materials data'!J15=\"a\",\"X\",\"\")","v":""},{"$f":"IF('Materials data'!J15=\"b\",\"X\",\"\")","v":""},{"$f":"IF('Materials data'!J15=\"c\",\"X\",\"\")","v":""}]
[{"$f":"'Materials data'!A16","v":0},{"$f":"'Materials data'!B16","v":0},{"$f":"IF('Materials data'!E16=\"c\",\"Cement\",IF('Materials data'!E16=\"i\",\"Insulation\",))","v":0},{"$f":"'Materials data'!I16","v":""},{"$f":"IF('Materials data'!J16=\"a\",\"X\",\"\")","v":""},{"$f":"IF('Materials data'!J16=\"b\",\"X\",\"\")","v":""},{"$f":"IF('Materials data'!J16=\"c\",\"X\",\"\")","v":""}]
[{"$f":"'Materials data'!A17","v":0},{"$f":"'Materials data'!B17","v":0},{"$f":"IF('Materials data'!E17=\"c\",\"Cement\",IF('Materials data'!E17=\"i\",\"Insulation\",))","v":0},{"$f":"'Materials data'!I17","v":""},{"$f":"IF('Materials data'!J17=\"a\",\"X\",\"\")","v":""},{"$f":"IF('Materials data'!J17=\"b\",\"X\",\"\")","v":""},{"$f":"IF('Materials data'!J17=\"c\",\"X\",\"\")","v":""}]
[{"$f":"'Materials data'!A18","v":0},{"$f":"'Materials data'!B18","v":0},{"$f":"IF('Materials data'!E18=\"c\",\"Cement\",IF('Materials data'!E18=\"i\",\"Insulation\",))","v":0},{"$f":"'Materials data'!I18","v":""},{"$f":"IF('Materials data'!J18=\"a\",\"X\",\"\")","v":""},{"$f":"IF('Materials data'!J18=\"b\",\"X\",\"\")","v":""},{"$f":"IF('Materials data'!J18=\"c\",\"X\",\"\")","v":""}]
[{"$f":"'Materials data'!A19","v":0},{"$f":"'Materials data'!B19","v":0},{"$f":"IF('Materials data'!E19=\"c\",\"Cement\",IF('Materials data'!E19=\"i\",\"Insulation\",))","v":0},{"$f":"'Materials data'!I19","v":""},{"$f":"IF('Materials data'!J19=\"a\",\"X\",\"\")","v":""},{"$f":"IF('Materials data'!J19=\"b\",\"X\",\"\")","v":""},{"$f":"IF('Materials data'!J19=\"c\",\"X\",\"\")","v":""}]
[{"$f":"'Materials data'!A20","v":0},{"$f":"'Materials data'!B20","v":0},{"$f":"IF('Materials data'!E20=\"c\",\"Cement\",IF('Materials data'!E20=\"i\",\"Insulation\",))","v":0},{"$f":"'Materials data'!I20","v":""},{"$f":"IF('Materials data'!J20=\"a\",\"X\",\"\")","v":""},{"$f":"IF('Materials data'!J20=\"b\",\"X\",\"\")","v":""},{"$f":"IF('Materials data'!J20=\"c\",\"X\",\"\")","v":""}]
[null,null,null,"MMV = Mycometer material value"]
[]
[]
[]
[]
[]
[]
[null,null,null,"Analyzed by: ",{"$f":"'Materials data'!I26","v":0}]
[null,null,null,"Company name: ",{"$f":"'Materials data'!I27","v":0}]
[null,null,null,"Mycometer certification number: ",{"$f":"'Materials data'!I28","v":0}]
[]
[]
[]
[]
[]
[]
[{"$f":"'Front page'!A40","v":"Version US February 2022, copyright © Mycometer A/S, all rights reserved"}]
[]
["Mycometer Insulation Materials"]
["MM value","Interpretation"]
[null,"Fungi (mould) inside insulation materials (mineral wool, glass wool etc.)"]
["A","The level of fungi is not above the normal background level and corresponds to insulation materials sampled from buildings with no moisture problems and relatively new and/or visually clean material."]
["Normal"]
["≤45"]
["B","The level of fungi is above the normal background level and corresponds to insulation materials with a reservoir of fungal debris in visual levels of accumulated dust/dirt. If the insulation materials appear clean and/or is relatively new a category B is suspicious and can be due to minor concentration of fungal growth."]
["Elevated"]
["46-135"]
["C","The level of fungi is high above the normal background level and is a clear indication of fungal growth inside the insulation material."]
["High"]
[">135"]
[]
[]
["Mycometer Cementitious Materials"]
["MM value","Interpretation"]
[null,"Fungi (mould) in cementitious materials (plaster, render, mortar, concrete etc.)"]
["A","The level of fungi is not above normal background level and corresponds to cementitious materials sampled from buildings with no moisture problems. "]
["Normal"]
["≤45"]
["B","The level of fungi is above the normal background level but is what can be expected in old material with a reservoir of fungi. The level is not high enough to give a clear indication of fungal growth."]
["Elevated"]
["46-160"]
["C","The level of fungi is high above the normal background level and is a clear indication of fungal growth inside the material. "]
["High"]
[">160"]

{"sheet":"Surface Bacteria data","index":5,"n_rows":29,"n_cols":8,"rows_kept":29,"cut":false,"hidden":false,"merged":[[3,3,3,4],[24,5,24,7],[25,5,25,7],[28,6,28,8],[27,5,27,7],[8,1,8,3],[9,1,9,3],[10,1,10,3],[11,1,11,3],[12,1,12,3],[13,1,13,3],[14,1,14,3],[15,1,15,3],[16,1,16,3],[17,1,17,3],[18,1,18,3],[26,5,26,7]]}
[]
["Kvantificering af skimmelsvamp på overflader "]
["Mycometer®-surface"]
["Project number:",null,null,{"$f":"IF(H5=0,\"\",IF(AND(H4/H5<=1.02,H4/H5>=0.98),\"Instrument is calibrated\",\"Calibrate instrument!\"))","v":""},null,null,"Measured standard value:"]
["Address:",null,null,null,null,null,"Standard value of instrument (STD VAL):"]
["Sampled by:",null,null,null,null,null,"Room temperature when analyzing (between 64.4 and 86°F):"]
["Sampling date:",null,"mm-dd-yy                                      ",null,null,null,"Reaction time (min:sec):",{"$f":"IF(H6=0,\"\",IF(H6<64.4,\"error\",IF(H6>86,\"error\",TEXT(((1.242852/EXP(-4445.6*(1/((H6+459.67)*5/9))+15.229)*30)/60)/24,\"mm:ss\"))))","v":""}]
[]
["Sample ID","Test site",null,null,"Blank value (BV)","Analysis value       (AV)","Mycometer value (MSBV)","Result category"]
[null,null,null,null,null,null,{"$f":"IF(F10=\"\",\"\",F10-E10)","v":""},{"$f":"IF(F10=0,\"\",IF(G10<=25.4999,\"A\",IF(G10<=350.4999,\"B\",IF(G10>=350.5,\"C\"))))","v":""}]
[null,null,null,null,null,null,{"$f":"IF(F11=\"\",\"\",F11-E11)","v":""},{"$f":"IF(F11=0,\"\",IF(G11<=25.4999,\"A\",IF(G11<=350.4999,\"B\",IF(G11>=350.5,\"C\"))))","v":""}]
[null,null,null,null,null,null,"",""]
[null,null,null,null,null,null,"",""]
[null,null,null,null,null,null,"",""]
[null,null,null,null,null,null,"",""]
[null,null,null,null,null,null,"",""]
[null,null,null,null,null,null,"",""]
[null,null,null,null,null,null,"",""]
[null,null,null,null,null,null,"",""]
[null,null,null,null,"MSBV = Mycometer surface bacteria value"]
[]
[]
[]
[null,null,null,null,null,null,null,"                                                                                                                                                                                                                                                                                                                                                                                                                                                                                                                                                                                                                                                                                                                                                                                                                                                                                                                                                                                                                                                                                                                                                                                                                                                                                                                                                                                                                                                                                                                                                                                                                                                                                                                                                                                                                                                                                                                                                                                                                                                                                                                                                                                                                                                                                                                                                                                                                                                                                                                                                                                                                                                                                                                                                                                                                                                                                                                                                                                                                                                                                                                                                                                                                                                                                                                                                                                                                                                                                                                                                                                                                                                                                                                                                                                                                                                                                                                                                                                                                                                                                                                                                                                                                                                                                                                                                                                                                                                                                                                                                                                                                                                                                                                                                                                                                                                                                                                                                                                                                                                                                                                                                                                                                                                                                                                                                                                                                                                                                                                                                                                                                                                                                                                                                                                                                                                                                                                                                                                                                                                                                                                                                                                                                                                                                                                                                                                                                                                                                                                                                                                                                                                                                                                                                                                                                                                                                                                                                                                                                                                                                                                                                                                                                                                                                                                                                                                                                                                                                                                                                                                                                                                                                                                                                                                                                                                                                                                                                                                                                                                                                                                                                                                                                                                                                                                                                                                                                                                                                                                                                                                                                                                                                                                                                                                                                                                                                                                                                                                                                                                                                                                                                                                                                                                                                                                                                                                                                                                                                                                                                                                                                                                                                                                                                                                                                                                                                                                                                                                                                                                                                                                                                                                                                                                                                                                                                                                                                                                                                                                                                                                                                                                                                                                                                                                                                                                                                                                                                                                                               "]
[null,null,null,null,"Analyzed by: "]
[null,null,null,null,"Date of analysis:"]
[null,null,null,null,"Company name: "]
[null,null,null,null,"Mycometer certification number: "]
[{"$f":"'Front page'!A40","v":"Version US February 2022, copyright © Mycometer A/S, all rights reserved"}]

{"sheet":"Surface Bacteria results","index":6,"n_rows":38,"n_cols":8,"rows_kept":38,"cut":false,"hidden":false,"merged":[[19,1,19,3],[6,5,6,7],[14,1,14,3],[15,1,15,3],[16,1,16,3],[17,1,17,3],[18,1,18,3],[9,1,9,3],[10,1,10,3],[11,1,11,3],[12,1,12,3],[13,1,13,3],[28,1,30,7],[27,1,27,7],[26,0,26,7],[31,1,33,7],[34,1,36,7],[4,6,4,7],[5,6,5,7],[22,5,22,7],[23,5,23,7],[24,5,24,7],[4,4,4,5],[8,5,8,7]]}
[]
[]
[]
[]
[null,"Project number:",{"$f":"'Surface Bacteria data'!B4","v":0},null,"Sampling date:",null,{"$f":"'Surface Bacteria data'!B7","v":"00:00:00"}]
[null,"Address:",{"$f":"'Surface Bacteria data'!B5","v":0},null,null," Date of analysis:",{"$f":"'Surface Bacteria data'!F26","v":"00:00:00"}]
[null,"Sampled by:",{"$f":"'Surface Bacteria data'!B6","v":0},null,null,{"$f":"IF('Surface Bacteria data'!D4=\"\",\"\",IF('Surface Bacteria data'!D4=\"Instrument is calibrated\",\"Instrument was calibrated\",\"Instrument was not calibrated\"))","v":""}]
[null,"Notes:"]
[null,null,null,null,null,"Result category"]
["Sample ID","Test site",null,null,"Mycometer value (MSBV)","A","B","C"]
[{"$f":"'Surface Bacteria data'!A10","v":0},{"$f":"IF('Surface Bacteria data'!B10=0,\"\",'Surface Bacteria data'!B10)","v":""},null,null,{"$f":"IF('Surface Bacteria data'!G10=\"\",\"\",'Surface Bacteria data'!G10)","v":""},{"$f":"IF('Surface Bacteria data'!H10=\"a\",\"X\",\"\")","v":""},{"$f":"IF('Surface Bacteria data'!H10=\"b\",\"X\",\"\")","v":""},{"$f":"IF('Surface Bacteria data'!H10=\"c\",\"X\",\"\")","v":""}]
[{"$f":"'Surface Bacteria data'!A11","v":0},{"$f":"IF('Surface Bacteria data'!B11=0,\"\",'Surface Bacteria data'!B11)","v":""},null,null,{"$f":"IF('Surface Bacteria data'!G11=\"\",\"\",'Surface Bacteria data'!G11)","v":""},{"$f":"IF('Surface Bacteria data'!H11=\"a\",\"X\",\"\")","v":""},{"$f":"IF('Surface Bacteria data'!H11=\"b\",\"X\",\"\")","v":""},{"$f":"IF('Surface Bacteria data'!H11=\"c\",\"X\",\"\")","v":""}]
[{"$f":"'Surface Bacteria data'!A12","v":0},{"$f":"IF('Surface Bacteria data'!B12=0,\"\",'Surface Bacteria data'!B12)","v":""},null,null,{"$f":"IF('Surface Bacteria data'!G12=\"\",\"\",'Surface Bacteria data'!G12)","v":""},{"$f":"IF('Surface Bacteria data'!H12=\"a\",\"X\",\"\")","v":""},{"$f":"IF('Surface Bacteria data'!H12=\"b\",\"X\",\"\")","v":""},{"$f":"IF('Surface Bacteria data'!H12=\"c\",\"X\",\"\")","v":""}]
[{"$f":"'Surface Bacteria data'!A13","v":0},{"$f":"IF('Surface Bacteria data'!B13=0,\"\",'Surface Bacteria data'!B13)","v":""},null,null,{"$f":"IF('Surface Bacteria data'!G13=\"\",\"\",'Surface Bacteria data'!G13)","v":""},{"$f":"IF('Surface Bacteria data'!H13=\"a\",\"X\",\"\")","v":""},{"$f":"IF('Surface Bacteria data'!H13=\"b\",\"X\",\"\")","v":""},{"$f":"IF('Surface Bacteria data'!H13=\"c\",\"X\",\"\")","v":""}]
[{"$f":"'Surface Bacteria data'!A14","v":0},{"$f":"IF('Surface Bacteria data'!B14=0,\"\",'Surface Bacteria data'!B14)","v":""},null,null,{"$f":"IF('Surface Bacteria data'!G14=\"\",\"\",'Surface Bacteria data'!G14)","v":""},{"$f":"IF('Surface Bacteria data'!H14=\"a\",\"X\",\"\")","v":""},{"$f":"IF('Surface Bacteria data'!H14=\"b\",\"X\",\"\")","v":""},{"$f":"IF('Surface Bacteria data'!H14=\"c\",\"X\",\"\")","v":""}]
[{"$f":"'Surface Bacteria data'!A15","v":0},{"$f":"IF('Surface Bacteria data'!B15=0,\"\",'Surface Bacteria data'!B15)","v":""},null,null,{"$f":"IF('Surface Bacteria data'!G15=\"\",\"\",'Surface Bacteria data'!G15)","v":""},{"$f":"IF('Surface Bacteria data'!H15=\"a\",\"X\",\"\")","v":""},{"$f":"IF('Surface Bacteria data'!H15=\"b\",\"X\",\"\")","v":""},{"$f":"IF('Surface Bacteria data'!H15=\"c\",\"X\",\"\")","v":""}]
[{"$f":"'Surface Bacteria data'!A16","v":0},{"$f":"IF('Surface Bacteria data'!B16=0,\"\",'Surface Bacteria data'!B16)","v":""},null,null,{"$f":"IF('Surface Bacteria data'!G16=\"\",\"\",'Surface Bacteria data'!G16)","v":""},{"$f":"IF('Surface Bacteria data'!H16=\"a\",\"X\",\"\")","v":""},{"$f":"IF('Surface Bacteria data'!H16=\"b\",\"X\",\"\")","v":""},{"$f":"IF('Surface Bacteria data'!H16=\"c\",\"X\",\"\")","v":""}]
[{"$f":"'Surface Bacteria data'!A17","v":0},{"$f":"IF('Surface Bacteria data'!B17=0,\"\",'Surface Bacteria data'!B17)","v":""},null,null,{"$f":"IF('Surface Bacteria data'!G17=\"\",\"\",'Surface Bacteria data'!G17)","v":""},{"$f":"IF('Surface Bacteria data'!H17=\"a\",\"X\",\"\")","v":""},{"$f":"IF('Surface Bacteria data'!H17=\"b\",\"X\",\"\")","v":""},{"$f":"IF('Surface Bacteria data'!H17=\"c\",\"X\",\"\")","v":""}]
[{"$f":"'Surface Bacteria data'!A18","v":0},{"$f":"IF('Surface Bacteria data'!B18=0,\"\",'Surface Bacteria data'!B18)","v":""},null,null,{"$f":"IF('Surface Bacteria data'!G18=\"\",\"\",'Surface Bacteria data'!G18)","v":""},{"$f":"IF('Surface Bacteria data'!H18=\"a\",\"X\",\"\")","v":""},{"$f":"IF('Surface Bacteria data'!H18=\"b\",\"X\",\"\")","v":""},{"$f":"IF('Surface Bacteria data'!H18=\"c\",\"X\",\"\")","v":""}]
[{"$f":"'Surface Bacteria data'!A19","v":0},{"$f":"IF('Surface Bacteria data'!B19=0,\"\",'Surface Bacteria data'!B19)","v":""},null,null,{"$f":"IF('Surface Bacteria data'!G19=\"\",\"\",'Surface Bacteria data'!G19)","v":""},{"$f":"IF('Surface Bacteria data'!H19=\"a\",\"X\",\"\")","v":""},{"$f":"IF('Surface Bacteria data'!H19=\"b\",\"X\",\"\")","v":""},{"$f":"IF('Surface Bacteria data'!H19=\"c\",\"X\",\"\")","v":""}]
[null,null,null,null,"MSBV = Mycometer surface bacteria value"]
[]
[null,null,null,null,"Analyzed by:",{"$f":"'Surface Bacteria data'!F25","v":0}]
[null,null,null,null,"Company name:",{"$f":"'Surface Bacteria data'!F27","v":0}]
[null,null,null,null,"Mycometer certification number:",{"$f":"'Surface Bacteria data'!F28","v":0}]
[]
["Mycometer surface Bacteria"]
["MSB value","Interpretation - Bacterial level on surfaces"]
["A","The level of bacteria on the surface is within the normal range and corresponds to the level found on visually clean surfaces in buildings with no visual (or odor) signs of water damage, equivalent to IICRC Standard S500, Category 1. Category A is the success criteria for post remediation clearance. "]
["Normal"]
["≤25"]
["B","The level of bacteria on the surface is elevated and corresponds to the level found on dusty/dirty or unclean surfaces.  A high category B can be associated with water damage/ flooding that have occurred in adjacent areas. "]
["Elevated"]
["26-350"]
["C","The level of bacteria is high above the normal background level. Category C results are obtained when surfaces contain very high levels of bacteria either due to sedimentation after a flooding, or leak of sewage or sometimes due to permanently moist/wet surface, where bacteria can grow."]
["High"]
[">350"]
[{"$f":"'Front page'!A40","v":"Version US February 2022, copyright © Mycometer A/S, all rights reserved"}]

{"sheet":"Air Fungi analysis","index":7,"n_rows":68,"n_cols":16,"rows_kept":68,"cut":false,"hidden":false,"merged":[[1,0,1,10],[3,1,3,9],[12,0,13,0],[12,1,13,3],[12,4,13,5],[12,6,13,6],[12,7,13,10],[9,6,9,8],[14,1,14,3],[14,4,14,5],[14,7,14,10],[15,1,15,3],[15,4,15,5],[15,7,15,10],[19,7,19,10],[20,7,20,10],[21,7,21,10],[16,1,16,3],[16,4,16,5],[16,7,16,10],[17,1,17,3],[17,4,17,5],[17,7,17,10],[21,1,21,3],[23,4,23,5],[49,1,49,8],[36,0,36,8],[37,1,37,8],[38,1,38,8],[39,1,39,8],[40,1,40,8],[41,1,41,8],[42,1,42,8],[43,1,43,8],[45,1,45,8],[46,1,46,8],[47,1,47,8],[26,7,26,9],[27,7,27,9],[28,7,28,9],[50,1,50,8],[51,1,51,8],[18,1,18,3],[18,4,18,5],[18,7,18,10],[22,7,22,10],[23,7,23,10],[19,4,19,5],[20,4,20,5],[21,4,21,5],[22,4,22,5],[19,1,19,3],[20,1,20,3],[48,1,48,8],[22,1,22,3],[23,1,23,3],[68,0,68,16383],[69,0,69,16383],[52,1,52,8],[53,1,53,8],[70,0,70,16383],[60,0,60,16383],[66,0,66,16383],[67,0,67,16383],[58,0,58,16383],[55,0,55,10]]}
[]
[]
[]
[]
[]
["Project number:",null,null,null,null,null,null,null,null,{"$f":"IF(J8=0,\"\",IF(AND(J7/J8<1.02,J7/J8>0.98),\"Instrument is calibrated\",\"Calibrate instrument!\"))","v":""}]
["Address:",null,null,null,null,null,null,null,"Measured standard value:"]
["Sampled by:",null,null,null,null,null,null,null,"Standard value of instrument (STD VAL):"]
["Sampling date:",null,"mm-dd-yy                             ",null,null,null,null,null,"Room temperature when analyzing (64.4 to 86°F):"]
["Date of analysis:",null,"mm-dd-yy                             ",null,null,null,"Rotameter calibration:",null,null,"MAIR003"]
[]
[]
["Sample ID","Test site",null,null,"Was the sample taken for quality control?",null,"Flowrate (LPM)","Reaction time                     (hrs:min:sec)"]
[null,null,null,null,null,null,null,null,null,null,null,null,null,"Flowrate","Cleaning","Norm. Flowrate"]
[null,null,null,null,null,null,null,{"$f":"IF(OR(E15<>\"\",G15<>\"\",B15<>\"\"),IF($J$9=\"\",\"Insert temperature\",IF($J$10=\"\",\"Select rotameter calibration\",IF(E15=\"\",\"Quality control?\",IF(G15=\"\",\"Insert flowrate\",IF(G15<9.49,\"Flowrate too low\",TEXT(((217.42/EXP(-5798*(1/(($J$9+459.67)*5/9))+24.9598)*P15*O15*45)/60)/24,\"hh:mm:ss\")))))),\"\")","v":""},null,null,null,null,null,{"$f":"IF($J$10=\"MAIR003\",G15,IF($J$10=\"MAIR001\",G15/1.3333,\"\"))","v":0},{"$f":"IF(E15=\"No\",1,IF(E15=\"Yes\",2,\"\"))","v":""},{"$f":"15/N15","v":{"$error":"#DIV/0!"}}]
[null,null,null,null,null,null,null,{"$f":"IF(OR(E16<>\"\",G16<>\"\",B16<>\"\"),IF($J$9=\"\",\"Insert temperature\",IF($J$10=\"\",\"Select rotameter calibration\",IF(E16=\"\",\"Quality control?\",IF(G16=\"\",\"Insert flowrate\",IF(G16<9.49,\"Flowrate too low\",TEXT(((217.42/EXP(-5798*(1/(($J$9+459.67)*5/9))+24.9598)*P16*O16*45)/60)/24,\"hh:mm:ss\")))))),\"\")","v":""},null,null,null,null,null,0,{"$f":"IF(E16=\"No\",1,IF(E16=\"Yes\",2,\"\"))","v":""},{"$error":"#DIV/0!"}]
[null,null,null,null,null,null,null,"",null,null,null,null,null,0,"",{"$error":"#DIV/0!"}]
[null,null,null,null,null,null,null,"",null,null,null,null,null,0,"",{"$error":"#DIV/0!"}]
[null,null,null,null,null,null,null,"",null,null,null,null,null,0,"",{"$error":"#DIV/0!"}]
[null,null,null,null,null,null,null,"",null,null,null,null,null,0,"",{"$error":"#DIV/0!"}]
[null,null,null,null,null,null,null,"",null,null,null,null,null,0,"",{"$error":"#DIV/0!"}]
[null,null,null,null,null,null,null,"",null,null,null,null,null,0,"",{"$error":"#DIV/0!"}]
[null,null,null,null,null,null,null,"",null,null,null,null,null,0,"",{"$error":"#DIV/0!"}]
[null,null,null,null,null,null,null,"",null,null,null,null,null,0,"",{"$error":"#DIV/0!"}]
[]
[]
[null,null,null,null,null,null,"Analyzed by:"]
[null,null,null,null,null,null,"Company name:"]
[null,null,null,null,null,null,"Mycometer certification number:"]
[]
[]
[]
[{"$f":"'Front page'!A40","v":"Version US February 2022, copyright © Mycometer A/S, all rights reserved"}]
[]
[]
[]
["Mycometer air - FAI"]
["Fungi to","Explanation of results"]
["Allergen Index","Fungi to Allergen Index (FAI)"]
["A+","The fungi to allergen index is in the low end of the normal range. The low contents of fungi compared to other"]
["Low normal","allergens indicates that there is not a fungi source (growth) in connection to the room."]
["≤ 5%"]
["A","The fungi to allergen index is within the normal range. The fungi to total allergen ratio indicates that there is no"]
["Normal","fungi source (growth) in connection to the room."]
["6-14%"]
["B","The fungi to allergen index is in the high end of the normal range. The amount of fungi compared to other"]
["High normal","allergens indicates that there is no significant fungi source (growth) in connection to the room. However, there can"]
["15-23%","be lesser sources."]
["C","The fungi to allergen index is above the normal range. The amount of fungi compared to total allergens indicates"]
["High","that there likely is a fungi source (growth) within or in connection to the room."]
["24-44%"]
["D","The fungi to allergen index is far above the normal range. The amount of fungi compared to total allergens indicates"]
["Very high","that there is a fungi source (growth) within or in connection to the room."]
[">44%"]
["The results are based on examination of buildings with no apparent or known fungi or moisture problems. The normal range is defined as the level found in 80% of the examined"]
["rooms in normal buildings without fungi or moisture problems."]
[]
["Mycometer air FAI measures a marker of the level of fungi (spores, hyphae, and micro fragments) and a marker of the level of total allergens from dust mites, pollen, mould,"]
["pet dander, insects etc. The method is based on comparison to levels found in normal building with no visible or perceived mould or moisture problems."]
[]
["Health issues. There is no current scientific evidence allowing for the comparison between the categories above and health issues."]
[]
["Activated sampling; the interpretation criteria are based on activated air sampling where mould spores and other particles settled on surfaces are resuspended into the air."]
["To use the above interpretation criteria it is essential that the Mycometer protocol for activated air sampling is used. Activated air sampling has shown to be much more representative"]
["of what is in a room and avoid false negative. Results are also much more reproducible than results obtained using non-activated sampling "]
[]
["Hidden growth of fungi can not always be revealed using an air sample. This is the case if mould particles (spores and other) cannot physically pass into the rooms, e.g. growing inside"]
["wall cavities or under the floor. In practice it is therefore not possible, using any available technology, to prove that there is no (hidden) mould source in a building."]

{"sheet":"Air Fungi data","index":8,"n_rows":64,"n_cols":9,"rows_kept":64,"cut":false,"hidden":false,"merged":[[8,7,8,8],[15,5,15,6],[16,5,16,6],[17,5,17,6],[18,5,18,6],[10,5,10,6],[11,5,11,6],[12,5,12,6],[13,5,13,6],[14,5,14,6],[19,1,19,3],[20,1,20,3],[51,1,51,8],[45,0,45,8],[47,1,47,8],[48,1,48,8],[49,1,49,8],[50,1,50,8],[46,1,46,8],[24,6,24,7],[25,6,25,7],[26,6,26,7],[21,1,21,2],[22,1,22,2],[20,5,20,6],[19,5,19,6],[14,1,14,3],[15,1,15,3],[16,1,16,3],[17,1,17,3],[18,1,18,3],[5,3,5,4],[10,1,10,3],[11,1,11,3],[12,1,12,3],[13,1,13,3],[53,1,53,8],[54,1,54,8],[55,1,55,8],[56,1,56,8],[57,1,57,8],[62,0,62,8],[58,1,58,8],[59,1,59,8],[60,1,60,8],[61,1,61,8]]}
[]
[]
[]
[]
["Project number:",{"$f":"IF('Air Fungi analysis'!B6=\"\",\"\",'Air Fungi analysis'!B6)","v":""}]
["Address:",{"$f":"IF('Air Fungi analysis'!B7=\"\",\"\",'Air Fungi analysis'!B7)","v":""}]
["Sampled by:",{"$f":"IF('Air Fungi analysis'!B8=\"\",\"\",'Air Fungi analysis'!B8)","v":""}]
["Sampling date:",{"$f":"IF('Air Fungi analysis'!B9=\"\",\"\",'Air Fungi analysis'!B9)","v":""},"mm-dd-yy                         "]
["Date of analysis:",{"$f":"IF('Air Fungi analysis'!B10=\"\",\"\",'Air Fungi analysis'!B10)","v":""},"mm-dd-yy                         ",null,null,null,null,{"$f":"IF('Air Fungi analysis'!J6=\"\",\"\",IF('Air Fungi analysis'!J6=\"Instrument is calibrated\",\"Instrument was calibrated\",\"Instrument was not calibrated\"))","v":""}]
[null,null,null,"                                                                                                                       "]
["Sample ID","Test site",null,null,"Blank value (BV)","Analysis value (AV)",null,"Mycometer value  (MAFV/m3)","Result category"]
[{"$f":"IF('Air Fungi analysis'!A15=\"\",\"\",'Air Fungi analysis'!A15)","v":""},{"$f":"IF('Air Fungi analysis'!B15=\"\",\"\",'Air Fungi analysis'!B15)","v":""},null,null,null,null,null,{"$f":"IF(F12=\"\",\"\",IF('Air Fungi analysis'!E15=\"\",\"Quality control?\",(F12-E12)/(0.15*'Air Fungi analysis'!O15)))","v":""},{"$f":"IF(OR(H12=\"\",H12=\"Quality control?\"),\"\",IF(H12<=35.4999,\"A+\",IF(H12<=145.4999,\"A\",IF(H12<=240.4999,\"B\",IF(H12<=680.4999,\"C\",IF(H12>=680.5,\"D\"))))))","v":""}]
[{"$f":"IF('Air Fungi analysis'!A16=\"\",\"\",'Air Fungi analysis'!A16)","v":""},{"$f":"IF('Air Fungi analysis'!B16=\"\",\"\",'Air Fungi analysis'!B16)","v":""},null,null,null,null,null,{"$f":"IF(F13=\"\",\"\",IF('Air Fungi analysis'!E16=\"\",\"Quality control?\",(F13-E13)/(0.15*'Air Fungi analysis'!O16)))","v":""},{"$f":"IF(OR(H13=\"\",H13=\"Quality control?\"),\"\",IF(H13<=35.4999,\"A+\",IF(H13<=145.4999,\"A\",IF(H13<=240.4999,\"B\",IF(H13<=680.4999,\"C\",IF(H13>=680.5,\"D\"))))))","v":""}]
[{"$f":"IF('Air Fungi analysis'!A17=\"\",\"\",'Air Fungi analysis'!A17)","v":""},{"$f":"IF('Air Fungi analysis'!B17=\"\",\"\",'Air Fungi analysis'!B17)","v":""},null,null,null,null,null,{"$f":"IF(F14=\"\",\"\",IF('Air Fungi analysis'!E17=\"\",\"Quality control?\",(F14-E14)/(0.15*'Air Fungi analysis'!O17)))","v":""},""]
[{"$f":"IF('Air Fungi analysis'!A18=\"\",\"\",'Air Fungi analysis'!A18)","v":""},{"$f":"IF('Air Fungi analysis'!B18=\"\",\"\",'Air Fungi analysis'!B18)","v":""},null,null,null,null,null,{"$f":"IF(F15=\"\",\"\",IF('Air Fungi analysis'!E18=\"\",\"Quality control?\",(F15-E15)/(0.15*'Air Fungi analysis'!O18)))","v":""},""]
[{"$f":"IF('Air Fungi analysis'!A19=\"\",\"\",'Air Fungi analysis'!A19)","v":""},{"$f":"IF('Air Fungi analysis'!B19=\"\",\"\",'Air Fungi analysis'!B19)","v":""},null,null,null,null,null,{"$f":"IF(F16=\"\",\"\",IF('Air Fungi analysis'!E19=\"\",\"Quality control?\",(F16-E16)/(0.15*'Air Fungi analysis'!O19)))","v":""},""]
[{"$f":"IF('Air Fungi analysis'!A20=\"\",\"\",'Air Fungi analysis'!A20)","v":""},{"$f":"IF('Air Fungi analysis'!B20=\"\",\"\",'Air Fungi analysis'!B20)","v":""},null,null,null,null,null,{"$f":"IF(F17=\"\",\"\",IF('Air Fungi analysis'!E20=\"\",\"Quality control?\",(F17-E17)/(0.15*'Air Fungi analysis'!O20)))","v":""},""]
[{"$f":"IF('Air Fungi analysis'!A21=\"\",\"\",'Air Fungi analysis'!A21)","v":""},{"$f":"IF('Air Fungi analysis'!B21=\"\",\"\",'Air Fungi analysis'!B21)","v":""},null,null,null,null,null,{"$f":"IF(F18=\"\",\"\",IF('Air Fungi analysis'!E21=\"\",\"Quality control?\",(F18-E18)/(0.15*'Air Fungi analysis'!O21)))","v":""},""]
[{"$f":"IF('Air Fungi analysis'!A22=\"\",\"\",'Air Fungi analysis'!A22)","v":""},{"$f":"IF('Air Fungi analysis'!B22=\"\",\"\",'Air Fungi analysis'!B22)","v":""},null,null,null,null,null,{"$f":"IF(F19=\"\",\"\",IF('Air Fungi analysis'!E22=\"\",\"Quality control?\",(F19-E19)/(0.15*'Air Fungi analysis'!O22)))","v":""},""]
[{"$f":"IF('Air Fungi analysis'!A23=\"\",\"\",'Air Fungi analysis'!A23)","v":""},{"$f":"IF('Air Fungi analysis'!B23=\"\",\"\",'Air Fungi analysis'!B23)","v":""},null,null,null,null,null,{"$f":"IF(F20=\"\",\"\",IF('Air Fungi analysis'!E23=\"\",\"Quality control?\",(F20-E20)/(0.15*'Air Fungi analysis'!O23)))","v":""},""]
[{"$f":"IF('Air Fungi analysis'!A24=\"\",\"\",'Air Fungi analysis'!A24)","v":""},{"$f":"IF('Air Fungi analysis'!B24=\"\",\"\",'Air Fungi analysis'!B24)","v":""},null,null,null,null,null,{"$f":"IF(F21=\"\",\"\",IF('Air Fungi analysis'!E24=\"\",\"Quality control?\",(F21-E21)/(0.15*'Air Fungi analysis'!O24)))","v":""},""]
[null,null,null,null,null,"MAFV = Mycometer air Fungi value"]
[]
[]
[null,null,null,null,null,"Analyzed by:",{"$f":"IF('Air Fungi analysis'!H27=\"\",\"\",'Air Fungi analysis'!H27)","v":""}]
[null,null,null,null,null,"Company name:",{"$f":"IF('Air Fungi analysis'!H28=\"\",\"\",'Air Fungi analysis'!H28)","v":""}]
[null,null,null,null,null,"Mycometer certification number:",{"$f":"IF('Air Fungi analysis'!H29=\"\",\"\",'Air Fungi analysis'!H29)","v":""}]
[]
[]
[]
[{"$f":"'Front page'!A40","v":"Version US February 2022, copyright © Mycometer A/S, all rights reserved"}]
[]
[]
[]
[]
[]
[]
[]
[]
[]
[]
[]
[]
[]
[]
["Resultatforklaring: Mycometer air - Fungi"]
["Skimmel tal","Eksponering for skimmelsvamp"]
["A+","Niveauet af skimmelsvamp er i den lave ende af normalområdet, og svarer til, det man finder i"]
["Lav normal","rum/bygninger uden fugt-/skimmelproblemer og med høj rengøringsstandard. A+ er også"]
["≤ 35","godkendelsesniveauet efter en grundig rengøring."]
["A","Niveauet af skimmelsvamp er i normalområdet og svarer til, det man finder i bygninger uden"]
["Normal","fugt-/skimmelproblemer og med en typisk rengøringsstandard."]
["36-145"]
["B","Niveauet af skimmelsvamp er i den høje ende af normalområdet og svarer til det man finder i"]
["Høj normal","bygninger uden fugt-/skimmelproblemer og med en normal til ringe rengøringsstandard."]
["146-240"]
["C","Niveauet af skimmelsvamp er over normalområdet. Det forhøjede niveau betyder som regel, at"]
["Unormal høj","der er en kilde (vækst af skimmelsvamp) og/eller at rengøringsniveauet er dårlig. Det høje"]
["241-680","skimmeltal bør altid udbedres så det høje skimmeltal kan finde en forklaring."]
["D","Niveauet af skimmelsvamp er højt over normalområdet. Dette betyder ofte, at der er en kilde til"]
["Meget høj","skimmelsvamp og/eller at rengøringsniveauet er meget dårligt."]
[">680"]
["Resultaterne er baseret på undersøgelse af bygninger uden kendte skimmel og eller fugtproblemer. Normalområdet er defineret som det"]
["niveau man finder i de 80% af de undersøgte rum i normale bygninger uden skimmel og fugt problemer."]

{"sheet":"Air Fungi results","index":9,"n_rows":96,"n_cols":8,"rows_kept":96,"cut":false,"hidden":false,"merged":[[6,4,6,6],[94,0,94,7],[35,1,35,7],[35,0,36,0],[53,0,53,7],[46,1,48,7],[49,1,51,7],[95,0,95,7],[61,0,61,7],[2,0,2,7],[3,0,3,7],[60,0,60,7],[23,4,23,6],[24,4,24,6],[25,4,25,6],[5,5,5,6],[8,3,8,7],[4,5,4,6],[36,1,36,8],[34,0,34,8],[37,1,39,7],[40,1,42,7],[43,1,45,7]]}
[]
[]
[]
[]
["Project number:",{"$f":"'Air Fungi data'!B5","v":""},null,null,"Sampling date:",{"$f":"'Air Fungi data'!B8","v":""}]
["Address:",{"$f":"'Air Fungi data'!B6","v":""},null,null,"Date of analysis:",{"$f":"'Air Fungi data'!B9","v":""}]
["Sampled by:",{"$f":"'Air Fungi data'!B7","v":""},null,null,{"$f":"IF('Air Fungi analysis'!J6=\"\",\"\",IF('Air Fungi analysis'!J6=\"Instrument is calibrated\",\"Instrument was calibrated\",\"Instrument was not calibrated\"))","v":""}]
["Notes:"]
[null,null,null,"Result category"]
["Sample ID","Test site","Mycometer value (MAFV/m3)","A+","A","B","C","D"]
[{"$f":"'Air Fungi analysis'!A15","v":0},{"$f":"'Air Fungi data'!B12","v":""},{"$f":"IF('Air Fungi data'!H12=\"Kvalitetskontrol?\",\"\",'Air Fungi data'!H12)","v":""},{"$f":"IF('Air Fungi data'!I12=\"a+\",\"X\",\"\")","v":""},{"$f":"IF('Air Fungi data'!I12=\"a\",\"X\",\"\")","v":""},{"$f":"IF('Air Fungi data'!I12=\"b\",\"X\",\"\")","v":""},{"$f":"IF('Air Fungi data'!I12=\"c\",\"X\",\"\")","v":""},{"$f":"IF('Air Fungi data'!I12=\"d\",\"X\",\"\")","v":""}]
[{"$f":"'Air Fungi analysis'!A16","v":0},{"$f":"'Air Fungi data'!B13","v":""},{"$f":"IF('Air Fungi data'!H13=\"Kvalitetskontrol?\",\"\",'Air Fungi data'!H13)","v":""},{"$f":"IF('Air Fungi data'!I13=\"a+\",\"X\",\"\")","v":""},{"$f":"IF('Air Fungi data'!I13=\"a\",\"X\",\"\")","v":""},{"$f":"IF('Air Fungi data'!I13=\"b\",\"X\",\"\")","v":""},{"$f":"IF('Air Fungi data'!I13=\"c\",\"X\",\"\")","v":""},{"$f":"IF('Air Fungi data'!I13=\"d\",\"X\",\"\")","v":""}]
[{"$f":"'Air Fungi analysis'!A17","v":0},{"$f":"'Air Fungi data'!B14","v":""},{"$f":"IF('Air Fungi data'!H14=\"Kvalitetskontrol?\",\"\",'Air Fungi data'!H14)","v":""},{"$f":"IF('Air Fungi data'!I14=\"a+\",\"X\",\"\")","v":""},{"$f":"IF('Air Fungi data'!I14=\"a\",\"X\",\"\")","v":""},{"$f":"IF('Air Fungi data'!I14=\"b\",\"X\",\"\")","v":""},{"$f":"IF('Air Fungi data'!I14=\"c\",\"X\",\"\")","v":""},{"$f":"IF('Air Fungi data'!I14=\"d\",\"X\",\"\")","v":""}]
[{"$f":"'Air Fungi analysis'!A18","v":0},{"$f":"'Air Fungi data'!B15","v":""},{"$f":"IF('Air Fungi data'!H15=\"Kvalitetskontrol?\",\"\",'Air Fungi data'!H15)","v":""},{"$f":"IF('Air Fungi data'!I15=\"a+\",\"X\",\"\")","v":""},{"$f":"IF('Air Fungi data'!I15=\"a\",\"X\",\"\")","v":""},{"$f":"IF('Air Fungi data'!I15=\"b\",\"X\",\"\")","v":""},{"$f":"IF('Air Fungi data'!I15=\"c\",\"X\",\"\")","v":""},{"$f":"IF('Air Fungi data'!I15=\"d\",\"X\",\"\")","v":""}]
[{"$f":"'Air Fungi analysis'!A19","v":0},{"$f":"'Air Fungi data'!B16","v":""},{"$f":"IF('Air Fungi data'!H16=\"Kvalitetskontrol?\",\"\",'Air Fungi data'!H16)","v":""},{"$f":"IF('Air Fungi data'!I16=\"a+\",\"X\",\"\")","v":""},{"$f":"IF('Air Fungi data'!I16=\"a\",\"X\",\"\")","v":""},{"$f":"IF('Air Fungi data'!I16=\"b\",\"X\",\"\")","v":""},{"$f":"IF('Air Fungi data'!I16=\"c\",\"X\",\"\")","v":""},{"$f":"IF('Air Fungi data'!I16=\"d\",\"X\",\"\")","v":""}]
[{"$f":"'Air Fungi analysis'!A20","v":0},{"$f":"'Air Fungi data'!B17","v":""},{"$f":"IF('Air Fungi data'!H17=\"Kvalitetskontrol?\",\"\",'Air Fungi data'!H17)","v":""},{"$f":"IF('Air Fungi data'!I17=\"a+\",\"X\",\"\")","v":""},{"$f":"IF('Air Fungi data'!I17=\"a\",\"X\",\"\")","v":""},{"$f":"IF('Air Fungi data'!I17=\"b\",\"X\",\"\")","v":""},{"$f":"IF('Air Fungi data'!I17=\"c\",\"X\",\"\")","v":""},{"$f":"IF('Air Fungi data'!I17=\"d\",\"X\",\"\")","v":""}]
[{"$f":"'Air Fungi analysis'!A21","v":0},{"$f":"'Air Fungi data'!B18","v":""},{"$f":"IF('Air Fungi data'!H18=\"Kvalitetskontrol?\",\"\",'Air Fungi data'!H18)","v":""},{"$f":"IF('Air Fungi data'!I18=\"a+\",\"X\",\"\")","v":""},{"$f":"IF('Air Fungi data'!I18=\"a\",\"X\",\"\")","v":""},{"$f":"IF('Air Fungi data'!I18=\"b\",\"X\",\"\")","v":""},{"$f":"IF('Air Fungi data'!I18=\"c\",\"X\",\"\")","v":""},{"$f":"IF('Air Fungi data'!I18=\"d\",\"X\",\"\")","v":""}]
[{"$f":"'Air Fungi analysis'!A22","v":0},{"$f":"'Air Fungi data'!B19","v":""},{"$f":"IF('Air Fungi data'!H19=\"Kvalitetskontrol?\",\"\",'Air Fungi data'!H19)","v":""},{"$f":"IF('Air Fungi data'!I19=\"a+\",\"X\",\"\")","v":""},{"$f":"IF('Air Fungi data'!I19=\"a\",\"X\",\"\")","v":""},{"$f":"IF('Air Fungi data'!I19=\"b\",\"X\",\"\")","v":""},{"$f":"IF('Air Fungi data'!I19=\"c\",\"X\",\"\")","v":""},{"$f":"IF('Air Fungi data'!I19=\"d\",\"X\",\"\")","v":""}]
[{"$f":"'Air Fungi analysis'!A23","v":0},{"$f":"'Air Fungi data'!B20","v":""},{"$f":"IF('Air Fungi data'!H20=\"Kvalitetskontrol?\",\"\",'Air Fungi data'!H20)","v":""},{"$f":"IF('Air Fungi data'!I20=\"a+\",\"X\",\"\")","v":""},{"$f":"IF('Air Fungi data'!I20=\"a\",\"X\",\"\")","v":""},{"$f":"IF('Air Fungi data'!I20=\"b\",\"X\",\"\")","v":""},{"$f":"IF('Air Fungi data'!I20=\"c\",\"X\",\"\")","v":""},{"$f":"IF('Air Fungi data'!I20=\"d\",\"X\",\"\")","v":""}]
[{"$f":"'Air Fungi analysis'!A24","v":0},{"$f":"'Air Fungi data'!B21","v":""},{"$f":"IF('Air Fungi data'!H21=\"Kvalitetskontrol?\",\"\",'Air Fungi data'!H21)","v":""},{"$f":"IF('Air Fungi data'!I21=\"a+\",\"X\",\"\")","v":""},{"$f":"IF('Air Fungi data'!I21=\"a\",\"X\",\"\")","v":""},{"$f":"IF('Air Fungi data'!I21=\"b\",\"X\",\"\")","v":""},{"$f":"IF('Air Fungi data'!I21=\"c\",\"X\",\"\")","v":""},{"$f":"IF('Air Fungi data'!I21=\"d\",\"X\",\"\")","v":""}]
[null,null,null,"MAFV = Mycometer air Fungi value"]
[]
[]
[null,null,null,"Analyzed by:",{"$f":"'Air Fungi data'!G25","v":""}]
[null,null,null,"Company name:",{"$f":"'Air Fungi data'!G26","v":""}]
[null,null,null,"Mycometer certification number:",{"$f":"'Air Fungi data'!G27","v":""}]
[]
[]
[]
[]
[]
[]
[{"$f":"'Front page'!A40","v":"Version US February 2022, copyright © Mycometer A/S, all rights reserved"}]
[]
["Mycometer air Fungi"]
["MAF value","Interpretation"]
[null,"Fungi"]
["A+","The level of fungi is low and corresponds to what is found in rooms/buildings without fungal (mould) growth and/or moisture problems and a high cleaning standard."]
["Low"]
["≤ 35"]
["A","The level of fungi is normal and corresponds to the level typically found in rooms/buildings without fungal (mould) growth or moisture problems and a normal cleaning standard."]
["Normal"]
["36-145"]
["B","The level of fungi is elevated and corresponds to what is found in rooms/buildings with an inadequate cleaning standard. If the cleaning standard is good or very good, a category B result should lead to an extra thorough inspection to exclude the presence of a fungal source (fungal growth)."]
["Elevated"]
["146-240"]
["C","The level of fungi is high, which means that there is a fungal source (fungal growth) or a very poor cleaning standard. The high level of fungi should lead to a thorough inspection to determine the source."]
["High"]
["241-680"]
["D","The level of fungi is very high, which means that there is a fungal source (fungal growth) or a very poor cleaning standard. The very high level of fungi should lead to a thorough inspection to determine the source."]
["Very high"]
[">680"]
[]
["Mycometer air Fungi measures of the level of fungal particles such as fungal spores, micro-, and hyphal fragments. The method is quantitative and shows the amount of fungi present and thereby the potential exposure in the given room."]
[]
[{"$f":"'Surface Fungi data'!A29","v":0}]
[]
[]
[]
[]
["Kvantificering af skimmelsvamp i luft "]
["Mycometer®air - aggressiv prøvetagning"]
[]
[]
[null,"FORTOLKNING AF RESULTATER OPNÅET MED AGGRESSIV PRØVETAGNING"]
[]
[]
["A+","Mycometer air tal ≤ 30"]
["Niveauet af skimmelsvamp i luften er som det der findes i normale bygninger med høj rengøringsstandard.  "]
["Denne kategori er anbefalet godkendelseskrav for slutrengøring efter en skimmelsanering."]
[]
["A","Mycometer air tal 31-140"]
["Niveauet af skimmelsvamp i luften er, som det der findes i normale bygninger med normal rengøringsstandard. "]
[]
["B","Mycometer air tal 141-280"]
["Niveauet af skimmelsvamp er højere end det, der findes i normale bygninger med normal rengøringsstandard. "]
["Dette kan skyldes ophobning af udefra kommende skimmelsvamp, der akkumuleres pga. "]
["dårlig rengøringsstandard. Et kategori B resultat bør dog altid give anledning til et grundigere "]
["eftersyn efter en kilde til skimmesvamp i rummet/bygningen."]
[]
["C","Mycometer air tal 281 < 800"]
["Niveauet af skimmelsvamp er betydeligt højere end hvad man finder i normale bygninger. Dette kan skyldes,  "]
["at der er en kilde til skimmelsvamp i rummet/bygningen. Dette kan dog også skyldes en meget dårlig "]
["rengøringsstandard, der tillader en stor ophobning af udefra kommende skimmelsvampe partikler. "]
[]
["D","Mycometer air tal > 800"]
[]
[]
[]
[]
[]
[]
[]
[]
["Activated air sampling means that a standard protocol defined by Mycometer A/S has been used, where settled dust particles are resuspended in the air. Activated sampling has been shown to give representative and reproducible sample results. "]
["Hidden fungal growth e.g. within wall cavities or below the floor cannot always be revealed by use of air samples or dust samples independent of what method is being used. If the fungal growth is effectively encapsulated so that no fungal particles can escape or has no contaminant pathway into the space, the hidden fungal growth cannot be revealed. In practice it is not possible to prove the absence of fungal growth."]

{"sheet":"Air Allergen analysis","index":10,"n_rows":32,"n_cols":16,"rows_kept":32,"cut":false,"hidden":false,"merged":[[9,2,9,3],[4,2,4,3],[5,2,5,3],[6,2,6,3],[7,2,7,3],[8,2,8,3],[1,0,1,10],[3,1,3,9],[49,1,49,8],[37,1,37,8],[35,0,35,8],[36,1,36,8],[17,7,17,9],[18,7,18,9],[19,7,19,9],[20,7,20,9],[16,1,16,2],[17,1,17,2],[18,1,18,2],[19,1,19,2],[20,1,20,2],[21,1,21,2],[22,1,22,2],[13,1,13,2],[14,1,14,2],[69,0,69,16383],[51,1,51,8],[52,1,52,8],[54,0,54,10],[57,0,57,16383],[59,0,59,16383],[65,0,65,16383],[66,0,66,16383],[67,0,67,16383],[68,0,68,16383],[50,1,50,8],[38,1,38,8],[15,1,15,2],[11,1,12,2],[11,7,12,9],[13,7,13,9],[14,7,14,9],[15,7,15,9],[11,3,12,5],[5,9,5,10],[6,9,6,10],[7,9,7,10],[8,9,8,10],[8,6,8,8],[25,7,25,9],[45,1,45,8],[46,1,46,8],[47,1,47,8],[48,1,48,8],[39,1,39,8],[40,1,40,8],[41,1,41,8],[42,1,42,8],[44,1,44,8],[26,7,26,9],[16,7,16,9],[11,6,12,6],[4,9,4,10],[27,7,27,9],[13,3,13,5],[14,3,14,5],[15,3,15,5],[16,3,16,5],[17,3,17,5],[18,3,18,5],[19,3,19,5],[20,3,20,5],[21,3,21,5],[22,3,22,5],[21,7,21,9],[22,7,22,9]]}
[]
[]
[]
[]
[null,"Project number:",null,null,null,null,null,null,null,{"$f":"IF(J7=0,\"\",IF(AND(J6/J7<1.02,J6/J7>0.98),\"Instrument is calibrated\",\"Calibrate instrument!\"))","v":""}]
[null,"Address:",null,null,null,null,null,null,"Measured standard value:"]
[null,"Sampled by:",null,null,null,null,null,null,"Standard value of instrument (STD VAL):"]
[null,"Sampling date:",null,null,null,null,null,null,"Room temperature when analyzing (64.4 to 86°F):"]
[null,"Date of analysis:",null,null,null,null,"Rotameter calibration:",null,null,"MAIR003"]
[null,null,"mm-dd-yy"]
[]
[null,"Sample ID",null,"Test site",null,null,"Flowrate (LPM)","Reaction time                     (hrs:min:sec)"]
[null,null,null,null,null,null,null,null,null,null,null,null,null,"Flowrate",null,"Norm. Flowrate"]
[null,null,null,null,null,null,null,{"$f":"IF(OR(D14<>\"\",G14<>\"\"),IF($J$8=\"\",\"Insert temperature\",IF($J$9=\"\",\"Select rotameter calibration\",IF(G14=\"\",\"Insert flowrate\",IF(G14<9.49,\"Flowrate too low\",TEXT(((217.42/EXP(-5798*(1/(($J$8+459.67)*5/9))+24.9598)*P14*45)/60)/24,\"hh:mm:ss\"))))),\"\")","v":""},null,null,null,null,null,{"$f":"IF($J$9=\"MAIR003\",G14,IF($J$9=\"MAIR001\",G14/1.3333,\"\"))","v":0},null,{"$f":"15/N14","v":{"$error":"#DIV/0!"}}]
[null,null,null,null,null,null,null,{"$f":"IF(OR(D15<>\"\",G15<>\"\"),IF($J$8=\"\",\"Insert temperature\",IF($J$9=\"\",\"Select rotameter calibration\",IF(G15=\"\",\"Insert flowrate\",IF(G15<9.49,\"Flowrate too low\",TEXT(((217.42/EXP(-5798*(1/(($J$8+459.67)*5/9))+24.9598)*P15*45)/60)/24,\"hh:mm:ss\"))))),\"\")","v":""},null,null,null,null,null,0,null,{"$error":"#DIV/0!"}]
[null,null,null,null,null,null,null,"",null,null,null,null,null,0,null,{"$error":"#DIV/0!"}]
[null,null,null,null,null,null,null,"",null,null,null,null,null,0,null,{"$error":"#DIV/0!"}]
[null,null,null,null,null,null,null,"",null,null,null,null,null,0,null,{"$error":"#DIV/0!"}]
[null,null,null,null,null,null,null,"",null,null,null,null,null,0,null,{"$error":"#DIV/0!"}]
[null,null,null,null,null,null,null,"",null,null,null,null,null,0,null,{"$error":"#DIV/0!"}]
[null,null,null,null,null,null,null,"",null,null,null,null,null,0,null,{"$error":"#DIV/0!"}]
[null,null,null,null,null,null,null,"",null,null,null,null,null,0,null,{"$error":"#DIV/0!"}]
[null,null,null,null,null,null,null,"",null,null,null,null,null,0,null,{"$error":"#DIV/0!"}]
[]
[]
[null,null,null,null,null,null,"Analyzed by:"]
[null,null,null,null,null,null,"Company name:"]
[null,null,null,null,null,null,"Mycometer certification number:"]
[]
[]
[]
[{"$f":"'Front page'!A40","v":"Version US February 2022, copyright © Mycometer A/S, all rights reserved"}]

{"sheet":"Air Allergen data","index":11,"n_rows":64,"n_cols":9,"rows_kept":64,"cut":false,"hidden":false,"merged":[[19,1,19,3],[8,7,8,8],[19,5,19,6],[15,5,15,6],[13,5,13,6],[14,5,14,6],[16,5,16,6],[17,5,17,6],[18,5,18,6],[10,5,10,6],[14,1,14,3],[15,1,15,3],[16,1,16,3],[17,1,17,3],[18,1,18,3],[5,3,5,4],[10,1,10,3],[11,1,11,3],[12,1,12,3],[13,1,13,3],[20,5,20,6],[11,5,11,6],[12,5,12,6],[51,1,51,8],[21,1,21,2],[22,1,22,2],[24,6,24,7],[25,6,25,7],[26,6,26,7],[45,0,45,8],[46,1,46,8],[47,1,47,8],[48,1,48,8],[49,1,49,8],[50,1,50,8],[20,1,20,3],[59,1,59,8],[60,1,60,8],[61,1,61,8],[62,0,62,8],[53,1,53,8],[54,1,54,8],[55,1,55,8],[56,1,56,8],[57,1,57,8],[58,1,58,8]]}
[]
[]
[]
[]
["Project number:",{"$f":"'Air Allergen analysis'!C5","v":0}]
["Address:",{"$f":"'Air Allergen analysis'!C6","v":0}]
["Sampled by:",{"$f":"'Air Allergen analysis'!C7","v":0}]
["Sampling date:",{"$f":"'Air Allergen analysis'!C8","v":"00:00:00"},"mm-dd-yy                         "]
["Date of analysis:",{"$f":"'Air Allergen analysis'!C9","v":"00:00:00"},"mm-dd-yy                         ",null,null,null,null,{"$f":"IF('Air Allergen analysis'!J5=\"\",\"\",IF('Air Allergen analysis'!J5=\"Instrument is calibrated\",\"Instrument was calibrated\",\"Instrument was not calibrated\"))","v":""}]
[null,null,null,"                                                                                                                       "]
["Sample ID","Test site",null,null,"Blank value (BV)","Analysis value (AV)",null,"Mycometer value  (MAFV/m3)","Result category"]
[{"$f":"'Air Allergen analysis'!B14","v":0},{"$f":"'Air Allergen analysis'!D14","v":0},null,null,null,null,null,{"$f":"IF(F12=\"\",\"\",(F12-E12)/(0.15))","v":""},{"$f":"IF(OR(H12=\"\"),\"\",IF(H12<=275.4999,\"A+\",IF(H12<=1375.4999,\"A\",IF(H12<=2300.4999,\"B\",IF(H12<=7750.4999,\"C\",IF(H12>=7750.5,\"D\"))))))","v":""}]
[{"$f":"'Air Allergen analysis'!B15","v":0},{"$f":"'Air Allergen analysis'!D15","v":0},null,null,null,null,null,{"$f":"IF(F13=\"\",\"\",(F13-E13)/(0.15))","v":""},{"$f":"IF(OR(H13=\"\"),\"\",IF(H13<=275.4999,\"A+\",IF(H13<=1375.4999,\"A\",IF(H13<=2300.4999,\"B\",IF(H13<=7750.4999,\"C\",IF(H13>=7750.5,\"D\"))))))","v":""}]
[{"$f":"'Air Allergen analysis'!B16","v":0},{"$f":"'Air Allergen analysis'!D16","v":0},null,null,null,null,null,"",""]
[{"$f":"'Air Allergen analysis'!B17","v":0},{"$f":"'Air Allergen analysis'!D17","v":0},null,null,null,null,null,"",""]
[{"$f":"'Air Allergen analysis'!B18","v":0},{"$f":"'Air Allergen analysis'!D18","v":0},null,null,null,null,null,"",""]
[{"$f":"'Air Allergen analysis'!B19","v":0},{"$f":"'Air Allergen analysis'!D19","v":0},null,null,null,null,null,"",""]
[{"$f":"'Air Allergen analysis'!B20","v":0},{"$f":"'Air Allergen analysis'!D20","v":0},null,null,null,null,null,"",""]
[{"$f":"'Air Allergen analysis'!B21","v":0},{"$f":"'Air Allergen analysis'!D21","v":0},null,null,null,null,null,"",""]
[{"$f":"'Air Allergen analysis'!B22","v":0},{"$f":"'Air Allergen analysis'!D22","v":0},null,null,null,null,null,"",""]
[{"$f":"'Air Allergen analysis'!B23","v":0},{"$f":"'Air Allergen analysis'!D23","v":0},null,null,null,null,null,"",""]
[null,null,null,null,null,"MAAV = Mycometer air Allergen value"]
[]
[]
[null,null,null,null,null,"Analyzed by:",{"$f":"'Air Allergen analysis'!H26","v":0}]
[null,null,null,null,null,"Company name:",{"$f":"'Air Allergen analysis'!H27","v":0}]
[null,null,null,null,null,"Mycometer certification number:",{"$f":"'Air Allergen analysis'!H28","v":0}]
[]
[]
[]
[{"$f":"'Front page'!A40","v":"Version US February 2022, copyright © Mycometer A/S, all rights reserved"}]
[]
[]
[]
[]
[]
[]
[]
[]
[]
[]
[]
[]
[]
[]
["Resultatforklaring: Mycometer air - Fungi"]
["Skimmel tal","Eksponering for skimmelsvamp"]
["A+","Niveauet af skimmelsvamp er i den lave ende af normalområdet, og svarer til, det man finder i"]
["Lav normal","rum/bygninger uden fugt-/skimmelproblemer og med høj rengøringsstandard. A+ er også"]
["≤ 35","godkendelsesniveauet efter en grundig rengøring."]
["A","Niveauet af skimmelsvamp er i normalområdet og svarer til, det man finder i bygninger uden"]
["Normal","fugt-/skimmelproblemer og med en typisk rengøringsstandard."]
["36-145"]
["B","Niveauet af skimmelsvamp er i den høje ende af normalområdet og svarer til det man finder i"]
["Høj normal","bygninger uden fugt-/skimmelproblemer og med en normal til ringe rengøringsstandard."]
["146-240"]
["C","Niveauet af skimmelsvamp er over normalområdet. Det forhøjede niveau betyder som regel, at"]
["Unormal høj","der er en kilde (vækst af skimmelsvamp) og/eller at rengøringsniveauet er dårlig. Det høje"]
["241-680","skimmeltal bør altid udbedres så det høje skimmeltal kan finde en forklaring."]
["D","Niveauet af skimmelsvamp er højt over normalområdet. Dette betyder ofte, at der er en kilde til"]
["Meget høj","skimmelsvamp og/eller at rengøringsniveauet er meget dårligt."]
[">680"]
["Resultaterne er baseret på undersøgelse af bygninger uden kendte skimmel og eller fugtproblemer. Normalområdet er defineret som det"]
["niveau man finder i de 80% af de undersøgte rum i normale bygninger uden skimmel og fugt problemer."]

{"sheet":"Air Allergen results","index":12,"n_rows":114,"n_cols":8,"rows_kept":114,"cut":false,"hidden":false,"merged":[[36,1,36,7],[35,0,36,0],[37,1,39,7],[88,0,88,7],[89,0,89,7],[40,1,42,7],[43,1,45,7],[46,1,48,7],[49,1,51,7],[53,0,53,7],[54,0,54,7],[2,0,2,7],[3,0,3,7],[5,5,5,6],[8,3,8,7],[4,5,4,6],[6,4,6,6],[34,0,34,8],[35,1,35,7],[23,4,23,6],[24,4,24,6],[25,4,25,6]]}
[]
[]
[]
[]
["Project number:",{"$f":"'Air Allergen data'!B5","v":0},null,null,"Sampling date:",{"$f":"'Air Allergen data'!B8","v":"00:00:00"}]
["Address:",{"$f":"'Air Allergen data'!B6","v":0},null,null,"Date of analysis:",{"$f":"'Air Allergen data'!B9","v":"00:00:00"}]
["Sampled by:",{"$f":"'Air Allergen data'!B7","v":0},null,null,{"$f":"IF('Air Allergen analysis'!J5=\"\",\"\",IF('Air Allergen analysis'!J5=\"Instrument is calibrated\",\"Instrument was calibrated\",\"Instrument was not calibrated\"))","v":""}]
["Notes:"]
[null,null,null,"Result category"]
["Sample ID","Test site","Mycometer value  (MAAV/m3)","A+","A","B","C","D"]
[{"$f":"'Air Allergen analysis'!B14","v":0},{"$f":"'Air Allergen data'!B12","v":0},{"$f":"'Air Allergen data'!H12","v":""},{"$f":"IF('Air Allergen data'!I12=\"a+\",\"X\",\"\")","v":""},{"$f":"IF('Air Allergen data'!I12=\"a\",\"X\",\"\")","v":""},{"$f":"IF('Air Allergen data'!I12=\"b\",\"X\",\"\")","v":""},{"$f":"IF('Air Allergen data'!I12=\"c\",\"X\",\"\")","v":""},{"$f":"IF('Air Allergen data'!I12=\"d\",\"X\",\"\")","v":""}]
[{"$f":"'Air Allergen analysis'!B15","v":0},{"$f":"'Air Allergen data'!B13","v":0},{"$f":"'Air Allergen data'!H13","v":""},{"$f":"IF('Air Allergen data'!I13=\"a+\",\"X\",\"\")","v":""},{"$f":"IF('Air Allergen data'!I13=\"a\",\"X\",\"\")","v":""},{"$f":"IF('Air Allergen data'!I13=\"b\",\"X\",\"\")","v":""},{"$f":"IF('Air Allergen data'!I13=\"c\",\"X\",\"\")","v":""},{"$f":"IF('Air Allergen data'!I13=\"d\",\"X\",\"\")","v":""}]
[{"$f":"'Air Allergen analysis'!B16","v":0},{"$f":"'Air Allergen data'!B14","v":0},{"$f":"'Air Allergen data'!H14","v":""},{"$f":"IF('Air Allergen data'!I14=\"a+\",\"X\",\"\")","v":""},{"$f":"IF('Air Allergen data'!I14=\"a\",\"X\",\"\")","v":""},{"$f":"IF('Air Allergen data'!I14=\"b\",\"X\",\"\")","v":""},{"$f":"IF('Air Allergen data'!I14=\"c\",\"X\",\"\")","v":""},{"$f":"IF('Air Allergen data'!I14=\"d\",\"X\",\"\")","v":""}]
[{"$f":"'Air Allergen analysis'!B17","v":0},{"$f":"'Air Allergen data'!B15","v":0},{"$f":"'Air Allergen data'!H15","v":""},{"$f":"IF('Air Allergen data'!I15=\"a+\",\"X\",\"\")","v":""},{"$f":"IF('Air Allergen data'!I15=\"a\",\"X\",\"\")","v":""},{"$f":"IF('Air Allergen data'!I15=\"b\",\"X\",\"\")","v":""},{"$f":"IF('Air Allergen data'!I15=\"c\",\"X\",\"\")","v":""},{"$f":"IF('Air Allergen data'!I15=\"d\",\"X\",\"\")","v":""}]
[{"$f":"'Air Allergen analysis'!B18","v":0},{"$f":"'Air Allergen data'!B16","v":0},{"$f":"'Air Allergen data'!H16","v":""},{"$f":"IF('Air Allergen data'!I16=\"a+\",\"X\",\"\")","v":""},{"$f":"IF('Air Allergen data'!I16=\"a\",\"X\",\"\")","v":""},{"$f":"IF('Air Allergen data'!I16=\"b\",\"X\",\"\")","v":""},{"$f":"IF('Air Allergen data'!I16=\"c\",\"X\",\"\")","v":""},{"$f":"IF('Air Allergen data'!I16=\"d\",\"X\",\"\")","v":""}]
[{"$f":"'Air Allergen analysis'!B19","v":0},{"$f":"'Air Allergen data'!B17","v":0},{"$f":"'Air Allergen data'!H17","v":""},{"$f":"IF('Air Allergen data'!I17=\"a+\",\"X\",\"\")","v":""},{"$f":"IF('Air Allergen data'!I17=\"a\",\"X\",\"\")","v":""},{"$f":"IF('Air Allergen data'!I17=\"b\",\"X\",\"\")","v":""},{"$f":"IF('Air Allergen data'!I17=\"c\",\"X\",\"\")","v":""},{"$f":"IF('Air Allergen data'!I17=\"d\",\"X\",\"\")","v":""}]
[{"$f":"'Air Allergen analysis'!B20","v":0},{"$f":"'Air Allergen data'!B18","v":0},{"$f":"'Air Allergen data'!H18","v":""},{"$f":"IF('Air Allergen data'!I18=\"a+\",\"X\",\"\")","v":""},{"$f":"IF('Air Allergen data'!I18=\"a\",\"X\",\"\")","v":""},{"$f":"IF('Air Allergen data'!I18=\"b\",\"X\",\"\")","v":""},{"$f":"IF('Air Allergen data'!I18=\"c\",\"X\",\"\")","v":""},{"$f":"IF('Air Allergen data'!I18=\"d\",\"X\",\"\")","v":""}]
[{"$f":"'Air Allergen analysis'!B21","v":0},{"$f":"'Air Allergen data'!B19","v":0},{"$f":"'Air Allergen data'!H19","v":""},{"$f":"IF('Air Allergen data'!I19=\"a+\",\"X\",\"\")","v":""},{"$f":"IF('Air Allergen data'!I19=\"a\",\"X\",\"\")","v":""},{"$f":"IF('Air Allergen data'!I19=\"b\",\"X\",\"\")","v":""},{"$f":"IF('Air Allergen data'!I19=\"c\",\"X\",\"\")","v":""},{"$f":"IF('Air Allergen data'!I19=\"d\",\"X\",\"\")","v":""}]
[{"$f":"'Air Allergen analysis'!B22","v":0},{"$f":"'Air Allergen data'!B20","v":0},{"$f":"'Air Allergen data'!H20","v":""},{"$f":"IF('Air Allergen data'!I20=\"a+\",\"X\",\"\")","v":""},{"$f":"IF('Air Allergen data'!I20=\"a\",\"X\",\"\")","v":""},{"$f":"IF('Air Allergen data'!I20=\"b\",\"X\",\"\")","v":""},{"$f":"IF('Air Allergen data'!I20=\"c\",\"X\",\"\")","v":""},{"$f":"IF('Air Allergen data'!I20=\"d\",\"X\",\"\")","v":""}]
[{"$f":"'Air Allergen analysis'!B23","v":0},{"$f":"'Air Allergen data'!B21","v":0},{"$f":"'Air Allergen data'!H21","v":""},{"$f":"IF('Air Allergen data'!I21=\"a+\",\"X\",\"\")","v":""},{"$f":"IF('Air Allergen data'!I21=\"a\",\"X\",\"\")","v":""},{"$f":"IF('Air Allergen data'!I21=\"b\",\"X\",\"\")","v":""},{"$f":"IF('Air Allergen data'!I21=\"c\",\"X\",\"\")","v":""},{"$f":"IF('Air Allergen data'!I21=\"d\",\"X\",\"\")","v":""}]
[null,null,null,"MAAV = Mycometer air Allergen value"]
[]
[]
[null,null,null,"Analyzed by:",{"$f":"'Air Allergen data'!G25","v":0}]
[null,null,null,"Company name:",{"$f":"'Air Allergen data'!G26","v":0}]
[null,null,null,"Mycometer certification number:",{"$f":"'Air Allergen data'!G27","v":0}]
[]
[]
[]
[]
[]
[]
[{"$f":"'Front page'!A40","v":"Version US February 2022, copyright © Mycometer A/S, all rights reserved"}]
[]
["Mycometer air Allergen"]
["MAA value","Interpretation"]
[null,"Total allergens (dust mites, pollen, fungi, pet dander, skin cells etc.)"]
["A+","The level of allergens is low, corresponding to what is found in rooms/buildings with a high cleaning standard."]
["Low"]
["≤ 275"]
["A","The level of allergens is normal, corresponding to what is found in rooms/buildings with a normal cleaning standard."]
["Normal"]
["276-1,375"]
["B","The level of allergens is elevated, corresponding to what is found in normal rooms/building with a normal to poor cleaning standard."]
["Elevated"]
["1,376-2,300"]
["C","The level of allergens is high. This is often an indication of an inadequate cleaning standard."]
["High"]
["2,301-7,750"]
["D","The level of allergens is very high. This is often an indication of a highly inadequate cleaning standard and/or a significant influence from allergen sources such as pets, mould, dust mites etc."]
["Very high"]
[">7,750"]
[]
["Mycometer air Allergen measures a marker showing the presence of sources of allergens such as dust mites, pollen, fungi, pet dander etc. The Mycometer Air Allergen value is a measure of the total level of potential allergenic material present when measured by an activated air sample. The method does not measure specific allergens and as such gives no indication of the source."]
["Activated air sampling means that a standard protocol defined by Mycometer A/S has been used, where settled dust particles are resuspended in the air. Activated sampling has been shown to give representative and reproducible sample results. "]
[]
[]
[]
[]
[]
[]
[]
[]
[]
[]
[]
[]
[]
[]
[]
[]
[]
[]
[]
[]
[]
[]
[]
[]
[]
[]
[]
[]
[]
[]
[]
[]
[]
["Kvantificering af skimmelsvamp i luft "]
["Mycometer®air - aggressiv prøvetagning"]
[]
[]
[null,"FORTOLKNING AF RESULTATER OPNÅET MED AGGRESSIV PRØVETAGNING"]
[]
[]
["A+","Mycometer air tal ≤ 30"]
["Niveauet af skimmelsvamp i luften er som det der findes i normale bygninger med høj rengøringsstandard.  "]
["Denne kategori er anbefalet godkendelseskrav for slutrengøring efter en skimmelsanering."]
[]
["A","Mycometer air tal 31-140"]
["Niveauet af skimmelsvamp i luften er, som det der findes i normale bygninger med normal rengøringsstandard. "]
[]
["B","Mycometer air tal 141-280"]
["Niveauet af skimmelsvamp er højere end det, der findes i normale bygninger med normal rengøringsstandard. "]
["Dette kan skyldes ophobning af udefra kommende skimmelsvamp, der akkumuleres pga. "]
["dårlig rengøringsstandard. Et kategori B resultat bør dog altid give anledning til et grundigere "]
["eftersyn efter en kilde til skimmesvamp i rummet/bygningen."]
[]
["C","Mycometer air tal 281 < 800"]
["Niveauet af skimmelsvamp er betydeligt højere end hvad man finder i normale bygninger. Dette kan skyldes,  "]
["at der er en kilde til skimmelsvamp i rummet/bygningen. Dette kan dog også skyldes en meget dårlig "]
["rengøringsstandard, der tillader en stor ophobning af udefra kommende skimmelsvampe partikler. "]
[]
["D","Mycometer air tal > 800"]

{"sheet":"Air FAI analysis","index":13,"n_rows":68,"n_cols":16,"rows_kept":68,"cut":false,"hidden":false,"merged":[[20,1,20,3],[20,4,20,5],[20,7,20,10],[1,0,1,10],[3,1,3,9],[11,0,12,0],[11,1,12,3],[11,4,12,5],[11,6,12,6],[11,7,12,10],[9,6,9,8],[13,1,13,3],[13,4,13,5],[13,7,13,10],[14,1,14,3],[14,4,14,5],[14,7,14,10],[15,1,15,3],[15,4,15,5],[15,7,15,10],[16,1,16,3],[16,4,16,5],[16,7,16,10],[53,1,53,8],[41,1,41,8],[17,1,17,3],[17,4,17,5],[17,7,17,10],[36,0,36,8],[37,1,37,8],[38,1,38,8],[39,1,39,8],[40,1,40,8],[18,1,18,3],[18,4,18,5],[18,7,18,10],[19,1,19,3],[19,4,19,5],[19,7,19,10],[48,1,48,8],[49,1,49,8],[50,1,50,8],[51,1,51,8],[52,1,52,8],[26,8,26,9],[27,8,27,9],[28,8,28,9],[70,0,70,16383],[58,0,58,16383],[60,0,60,16383],[66,0,66,16383],[67,0,67,16383],[68,0,68,16383],[69,0,69,16383],[55,0,55,10],[42,1,42,8],[43,1,43,8],[45,1,45,8],[46,1,46,8],[47,1,47,8]]}
[]
[]
[]
[]
[]
["Project number:",null,null,null,null,null,null,null,null,{"$f":"IF(J8=0,\"\",IF(AND(J7/J8<1.02,J7/J8>0.98),\"Instrument is calibrated\",\"Calibrate instrument!\"))","v":""}]
["Address:",null,null,null,null,null,null,null,"Measured standard value:"]
["Sampled by:",null,null,null,null,null,null,null,"Standard value of instrument (STD VAL):"]
["Sampling date:",null,null,null,null,null,null,null,"Room temperature when analyzing (64.4 to 86°F):"]
["Date of analysis:",null,null,null,null,null,"Rotameter calibration:",null,null,"MAIR003"]
[]
["Sample ID","Test site",null,null,"Was the room clean?",null,"Flowrate (LPM)","Reaction time                     (hrs:min:sec)"]
[null,null,null,null,null,null,null,null,null,null,null,null,null,"Flowrate","Cleaning","Norm. Flowrate"]
[null,null,null,null,null,null,null,{"$f":"IF(OR(E14<>\"\",G14<>\"\",B14<>\"\"),IF($J$9=\"\",\"Insert temperature\",IF($J$10=\"\",\"Select rotameter calibration\",IF(E14=\"\",\"Quality control?\",IF(G14=\"\",\"Insert flowrate\",IF(G14<9.49,\"Flowrate too low\",TEXT(((217.42/EXP(-5798*(1/(($J$9+459.67)*5/9))+24.9598)*P14*O14*45)/60)/24,\"hh:mm:ss\")))))),\"\")","v":""},null,null,null,null,null,{"$f":"IF($J$10=\"MAIR003\",G14,IF($J$10=\"MAIR001\",G14/1.3333,\"\"))","v":0},{"$f":"IF(E14=\"No\",1,IF(E14=\"Yes\",2,\"\"))","v":""},{"$f":"15/N14","v":{"$error":"#DIV/0!"}}]
[null,null,null,null,null,null,null,{"$f":"IF(OR(E15<>\"\",G15<>\"\",B15<>\"\"),IF($J$9=\"\",\"Insert temperature\",IF($J$10=\"\",\"Select rotameter calibration\",IF(E15=\"\",\"Quality control?\",IF(G15=\"\",\"Insert flowrate\",IF(G15<9.49,\"Flowrate too low\",TEXT(((217.42/EXP(-5798*(1/(($J$9+459.67)*5/9))+24.9598)*P15*O15*45)/60)/24,\"hh:mm:ss\")))))),\"\")","v":""},null,null,null,null,null,0,{"$f":"IF(E15=\"No\",1,IF(E15=\"Yes\",2,\"\"))","v":""},{"$error":"#DIV/0!"}]
[null,null,null,null,null,null,null,"",null,null,null,null,null,0,"",{"$error":"#DIV/0!"}]
[null,null,null,null,null,null,null,"",null,null,null,null,null,0,"",{"$error":"#DIV/0!"}]
[null,null,null,null,null,null,null,"",null,null,null,null,null,0,"",{"$error":"#DIV/0!"}]
[null,null,null,null,null,null,null,"",null,null,null,null,null,0,"",{"$error":"#DIV/0!"}]
[null,null,null,null,null,null,null,"",null,null,null,null,null,0,"",{"$error":"#DIV/0!"}]
[null,null,null,null,null,null,null,"",null,null,null,null,null,0,"",{"$error":"#DIV/0!"}]
[]
[]
[]
[]
[]
[null,null,null,null,null,null,null,"Analyzed by:"]
[null,null,null,null,null,null,null,"Company name:"]
[null,null,null,null,null,null,null,"Mycometer certification number:"]
[]
[]
[]
[{"$f":"'Front page'!A40","v":"Version US February 2022, copyright © Mycometer A/S, all rights reserved"}]
[]
[]
[]
["Mycometer air - FAI"]
["Fungi to","Explanation of results"]
["Allergen Index","Fungi to Allergen Index (FAI)"]
["A+","The fungi to allergen index is in the low end of the normal range. The low contents of fungi compared to other"]
["Low normal","allergens indicates that there is not a fungi source (growth) in connection to the room."]
["≤ 5%"]
["A","The fungi to allergen index is within the normal range. The fungi to total allergen ratio indicates that there is no"]
["Normal","fungi source (growth) in connection to the room."]
["6-14%"]
["B","The fungi to allergen index is in the high end of the normal range. The amount of fungi compared to other"]
["High normal","allergens indicates that there is no significant fungi source (growth) in connection to the room. However, there can"]
["15-23%","be lesser sources."]
["C","The fungi to allergen index is above the normal range. The amount of fungi compared to total allergens indicates"]
["High","that there likely is a fungi source (growth) within or in connection to the room."]
["24-44%"]
["D","The fungi to allergen index is far above the normal range. The amount of fungi compared to total allergens indicates"]
["Very high","that there is a fungi source (growth) within or in connection to the room."]
[">44%"]
["The results are based on examination of buildings with no apparent or known fungi or moisture problems. The normal range is defined as the level found in 80% of the examined"]
["rooms in normal buildings without fungi or moisture problems."]
[]
["Mycometer air FAI measures a marker of the level of fungi (spores, hyphae, and micro fragments) and a marker of the level of total allergens from dust mites, pollen, mould,"]
["pet dander, insects etc. The method is based on comparison to levels found in normal building with no visible or perceived mould or moisture problems."]
[]
["Health issues. There is no current scientific evidence allowing for the comparison between the categories above and health issues."]
[]
["Activated sampling; the interpretation criteria are based on activated air sampling where mould spores and other particles settled on surfaces are resuspended into the air."]
["To use the above interpretation criteria it is essential that the Mycometer protocol for activated air sampling is used. Activated air sampling has shown to be much more representative"]
["of what is in a room and avoid false negative. Results are also much more reproducible than results obtained using non-activated sampling "]
[]
["Hidden growth of fungi can not always be revealed using an air sample. This is the case if mould particles (spores and other) cannot physically pass into the rooms, e.g. growing inside"]
["wall cavities or under the floor. In practice it is therefore not possible, using any available technology, to prove that there is no (hidden) mould source in a building."]

{"sheet":"Air FAI data","index":14,"n_rows":70,"n_cols":15,"rows_kept":70,"cut":false,"hidden":false,"merged":[[43,1,43,8],[55,1,55,8],[40,1,40,8],[50,1,50,8],[51,1,51,8],[52,1,52,8],[53,1,53,8],[54,1,54,8],[44,1,44,8],[45,1,45,8],[47,1,47,8],[48,1,48,8],[49,1,49,8],[72,0,72,16383],[57,0,57,10],[60,0,60,16383],[61,0,61,16383],[62,0,62,16383],[63,0,63,16383],[68,0,68,16383],[69,0,69,16383],[70,0,70,16383],[71,0,71,16383],[17,1,17,2],[18,1,18,2],[39,1,39,8],[41,1,41,8],[42,1,42,8],[19,1,19,2],[38,0,38,8],[27,7,27,10],[28,7,28,10],[29,7,29,10],[12,1,12,2],[13,1,13,2],[14,1,14,2],[15,1,15,2],[16,1,16,2],[1,0,1,10],[3,1,3,9],[5,3,5,4],[10,0,11,0],[10,3,10,6],[10,7,10,10],[10,1,11,2],[11,4,11,5],[8,5,8,7],[12,4,12,5],[13,4,13,5],[14,4,14,5],[15,4,15,5],[11,8,11,9],[12,8,12,9],[13,8,13,9],[14,8,14,9],[15,8,15,9],[16,4,16,5],[17,4,17,5],[18,4,18,5],[19,4,19,5],[16,8,16,9],[17,8,17,9],[18,8,18,9],[19,8,19,9]]}
[]
[]
[]
[]
["Project number:",{"$f":"'Air FAI analysis'!B6","v":0}]
["Address:",{"$f":"'Air FAI analysis'!B7","v":0}]
["Sampled by:",{"$f":"'Air FAI analysis'!B8","v":0}]
["Sampling date:",{"$f":"'Air FAI analysis'!B9","v":"00:00:00"},"mm-dd-yy                                                        "]
["Date of analysis:",{"$f":"'Air FAI analysis'!B10","v":"00:00:00"},"mm-dd-yy                                                        ",null,null,{"$f":"IF('Air FAI analysis'!J6=\"\",\"\",IF('Air FAI analysis'!J6=\"Instrument is calibrated\",\"Instrument was calibrated\",\"Instrument was not calibrated\"))","v":""}]
[]
["Sample ID","Test site",null,"Fungi",null,null,null,"Allergen"]
[null,null,null,"Blank value (BV)","Analysis value (AV)",null,"Mycometer value (MAFV/m3)","Blank value (BV)","Analysis value (AV)",null,"Mycometer value (MAAV/m3)","allergen","fungi","FAI"]
[{"$f":"'Air FAI analysis'!A14","v":0},{"$f":"'Air FAI analysis'!B14","v":0},null,null,null,null,{"$f":"IF(E13=\"\",\"\",IF('Air FAI analysis'!E14=0,\"Clean?\",(E13-D13)/(0.15*'Air FAI analysis'!O14)))","v":""},null,null,null,{"$f":"IF(I13=\"\",\"\",IF('Air FAI analysis'!E14=0,\"Clean?\",(I13-H13)/(0.15*'Air FAI analysis'!O14)))","v":""},{"$f":"IF(I13=0,\"\",IF(K13<=275.4999,\"A+\",IF(K13<=1375.4999,\"A\",IF(K13<=2300.4999,\"B\",IF(K13<=7750.4999,\"C\",IF(K13>=7750.5,\"D\"))))))","v":""},{"$f":"IF(E13=0,\"\",IF(G13<=35.4999,\"A+\",IF(G13<=145.4999,\"A\",IF(G13<=240.4999,\"B\",IF(G13<=680.4999,\"C\",IF(G13>=680.5,\"D\"))))))","v":""},{"$f":"IF(M13=\"\",\" \",IF(K13=0,\">1\",IF(O13<=5.4999,\"A+\",IF(O13<=14.4999,\"A\",IF(O13<=22.4999,\"B\",IF(O13<=35.4999,\"C\",IF(O13>=35.5,\"D\")))))))","v":" "},{"$f":"G13/K13*100","v":{"$error":"#VALUE!"}}]
[{"$f":"'Air FAI analysis'!A15","v":0},{"$f":"'Air FAI analysis'!B15","v":0},null,null,null,null,{"$f":"IF(E14=\"\",\"\",IF('Air FAI analysis'!E15=0,\"Clean?\",(E14-D14)/(0.15*'Air FAI analysis'!O15)))","v":""},null,null,null,{"$f":"IF(I14=\"\",\"\",IF('Air FAI analysis'!E15=0,\"Clean?\",(I14-H14)/(0.15*'Air FAI analysis'!O15)))","v":""},{"$f":"IF(I14=0,\"\",IF(K14<=275.4999,\"A+\",IF(K14<=1375.4999,\"A\",IF(K14<=2300.4999,\"B\",IF(K14<=7750.4999,\"C\",IF(K14>=7750.5,\"D\"))))))","v":""},"",{"$f":"IF(M14=\"\",\" \",IF(K14=0,\">1\",IF(O14<=5.4999,\"A+\",IF(O14<=14.4999,\"A\",IF(O14<=22.4999,\"B\",IF(O14<=35.4999,\"C\",IF(O14>=35.5,\"D\")))))))","v":" "},{"$error":"#VALUE!"}]
[{"$f":"'Air FAI analysis'!A16","v":0},{"$f":"'Air FAI analysis'!B16","v":0},null,null,null,null,{"$f":"IF(E15=\"\",\"\",IF('Air FAI analysis'!E16=0,\"Clean?\",(E15-D15)/(0.15*'Air FAI analysis'!O16)))","v":""},null,null,null,{"$f":"IF(I15=\"\",\"\",IF('Air FAI analysis'!E16=0,\"Clean?\",(I15-H15)/(0.15*'Air FAI analysis'!O16)))","v":""},"",""," ",{"$error":"#VALUE!"}]
[{"$f":"'Air FAI analysis'!A17","v":0},{"$f":"'Air FAI analysis'!B17","v":0},null,null,null,null,{"$f":"IF(E16=\"\",\"\",IF('Air FAI analysis'!E17=0,\"Clean?\",(E16-D16)/(0.15*'Air FAI analysis'!O17)))","v":""},null,null,null,{"$f":"IF(I16=\"\",\"\",IF('Air FAI analysis'!E17=0,\"Clean?\",(I16-H16)/(0.15*'Air FAI analysis'!O17)))","v":""},"",""," ",{"$error":"#VALUE!"}]
[{"$f":"'Air FAI analysis'!A18","v":0},{"$f":"'Air FAI analysis'!B18","v":0},null,null,null,null,{"$f":"IF(E17=\"\",\"\",IF('Air FAI analysis'!E18=0,\"Clean?\",(E17-D17)/(0.15*'Air FAI analysis'!O18)))","v":""},null,null,null,{"$f":"IF(I17=\"\",\"\",IF('Air FAI analysis'!E18=0,\"Clean?\",(I17-H17)/(0.15*'Air FAI analysis'!O18)))","v":""},"",""," ",{"$error":"#VALUE!"}]
[{"$f":"'Air FAI analysis'!A19","v":0},{"$f":"'Air FAI analysis'!B19","v":0},null,null,null,null,{"$f":"IF(E18=\"\",\"\",IF('Air FAI analysis'!E19=0,\"Clean?\",(E18-D18)/(0.15*'Air FAI analysis'!O19)))","v":""},null,null,null,{"$f":"IF(I18=\"\",\"\",IF('Air FAI analysis'!E19=0,\"Clean?\",(I18-H18)/(0.15*'Air FAI analysis'!O19)))","v":""},"",""," ",{"$error":"#VALUE!"}]
[{"$f":"'Air FAI analysis'!A20","v":0},{"$f":"'Air FAI analysis'!B20","v":0},null,null,null,null,{"$f":"IF(E19=\"\",\"\",IF('Air FAI analysis'!E20=0,\"Clean?\",(E19-D19)/(0.15*'Air FAI analysis'!O20)))","v":""},null,null,null,{"$f":"IF(I19=\"\",\"\",IF('Air FAI analysis'!E20=0,\"Clean?\",(I19-H19)/(0.15*'Air FAI analysis'!O20)))","v":""},"",""," ",{"$error":"#VALUE!"}]
[{"$f":"'Air FAI analysis'!A21","v":0},{"$f":"'Air FAI analysis'!B21","v":0},null,null,null,null,{"$f":"IF(E20=\"\",\"\",IF('Air FAI analysis'!E21=0,\"Clean?\",(E20-D20)/(0.15*'Air FAI analysis'!O21)))","v":""},null,null,null,{"$f":"IF(I20=\"\",\"\",IF('Air FAI analysis'!E21=0,\"Clean?\",(I20-H20)/(0.15*'Air FAI analysis'!O21)))","v":""},"",""," ",{"$error":"#VALUE!"}]
[null,null,null,"MAFV = Mycometer air Fungi value",null,null,null,"MAAV = Mycometer air Allergen value"]
[]
[]
[]
[]
[]
[]
[null,null,null,null,null,null,"Analyzed by:",{"$f":"'Air FAI analysis'!I27","v":0}]
[null,null,null,null,null,null,"Company name:",{"$f":"'Air FAI analysis'!I28","v":0}]
[null,null,null,null,null,null,"Mycometer certification number:",{"$f":"'Air FAI analysis'!I29","v":0}]
[]
[]
[]
[]
[{"$f":"'Front page'!A40","v":"Version US February 2022, copyright © Mycometer A/S, all rights reserved"}]
[]
[]
[]
["Mycometer air - FAI"]
["Skimmel til","Resultatforklaring"]
["allergen indeks","Skimmel til allergen indeks (FAI)"]
["A+","Skimmel til allergen indekset er i den lave del af normalområdet. Det lave indhold af skimmelsvamp i forhold til"]
["Lav normal","andre allergener indikerer at der ikke er nogen kilde til skimmelsvamp (vækst) i forbindelse med rummet.  "]
["≤ 5%"]
["A","Skimmel til allergen indekset ligger i normalområdet. Forholdet mellem skimmelsvamp og total allergener indikerer,"]
["Normal","at der ikke er nogen kilde til skimmelsvamp (vækst) i forbindelse med rummet."]
["6-14%"]
["B","Skimmel til allergen indekset ligger i den høje del af normalområdet. Indhold af skimmelsvamp i forhold til andre"]
["Høj normal","allergener indikerer at der ikke er nogen signifikant kilde til skimmelsvamp (vækst) i eller i forbindelse med rummet."]
["15-23%","Der kan dog være mindre kilder.  "]
["C","Skimmel til allergen indekset ligger over normalområdet. Indhold af skimmelsvamp i forhold til total allergener"]
["Unormal høj","indikerer at det er sandsynligt at der er en kilde til skimmelsvamp (vækst) i eller i forbindelse med rummet."]
["24-44%"]
["D","Skimmel til allergen indekset ligger højt over normalområdet. Indhold af skimmelsvamp i forhold til total allergener"]
["Meget høj","indikerer, at der er en kilde til skimmelsvamp (vækst) i eller i forbindelse med rummet."]
[">44%"]
["Resultaterne er baseret på undersøgelse af bygninger uden kendte skimmel og eller fugtproblemer. Normalområdet er defineret som det niveau man finder"]
["i de 80% af de undersøgte rum/bygninger."]
[]
["Mycometer air FAI måler på en markør der viser tilstedeværelse af skimmelsvampepartikler, såsom svampesporer, hyfefragmenter og svampe-mikropartikler og på en markør "]
["der viser tilstedeværelse af allergener fra støvmider, pollen, skimmelsvamp, husdyr m.m. Metoden er baseret på sammenligning af niveauer i normale bygninger uden fugt og"]
[" skimmelsvamp og bygninger med fugt og/eller skimmelproblemer."]
[]
["Helbredsproblemer. Der er ikke for nuværende videnskabelig evidens for, at sammenholde de ovenstående kategorier med helbredsgener. "]
[]
["Aktiveret prøvetagning betyder, at man anvender en metode hvor skimmelpartikler der er sedimenteret på overflader bringes tilbage i luften. Den aktiverede prøvetagning skal"]
["være udført efter Mycometer’s protokol for aktiveret prøvetagning. Aktiveret prøvetagning giver en langt mere repræsentativ og reproducerbar prøvetagning. "]
[]
["Skjult vækst af skimmelsvamp kan ikke altid afsløres af luft,- eller støvprøver uanset hvilke metoder der anvendes. Hvis skimmelvæksten er kapslet inde og sporer eller andre partikler"]
[" ikke kan trænge ind i det rum hvor man tager sin prøve, kan den skjulte skimmelvækst ikke afsløres. Det er derfor heller ikke praktisk muligt at bevise fravær af skimmelvækst i en bygning. "]

{"sheet":"Air FAI results","index":15,"n_rows":121,"n_cols":10,"rows_kept":121,"cut":false,"hidden":false,"merged":[[44,5,44,9],[45,5,45,9],[70,0,70,8],[60,1,62,8],[52,1,52,8],[53,1,53,8],[52,0,53,0],[66,1,68,8],[63,1,65,8],[57,1,59,8],[54,1,56,8],[18,1,20,2],[22,1,24,2],[51,0,51,8],[50,0,50,1],[29,1,29,2],[26,0,28,0],[30,0,32,0],[30,1,32,2],[33,1,33,2],[34,0,36,0],[34,1,36,2],[37,1,37,2],[38,0,40,0],[38,1,40,2],[41,1,41,2],[43,5,43,9],[2,0,2,6],[3,0,3,6],[10,0,12,0],[14,0,16,0],[4,5,4,7],[5,5,5,7],[8,5,8,9],[9,1,9,2],[10,1,12,2],[13,1,13,2],[14,1,16,2],[17,1,17,2],[150,0,150,8],[145,0,145,8],[146,0,146,8],[147,0,147,8],[148,0,148,8],[149,0,149,8],[143,0,143,8],[144,0,144,8],[128,0,128,8],[103,0,103,8],[21,1,21,2],[26,1,28,2],[25,1,25,2],[18,0,20,0],[22,0,24,0],[84,1,84,8],[85,1,85,8],[104,1,104,8],[72,0,72,8],[74,0,74,8],[84,0,85,0],[104,0,105,0],[98,1,100,8],[95,1,97,8],[92,1,94,8],[89,1,91,8],[86,1,88,8],[105,1,105,8],[83,0,83,8],[118,1,120,8],[115,1,117,8],[112,1,114,8],[109,1,111,8],[106,1,108,8]]}
[]
[]
[]
[]
["Project number:",{"$f":"'Air FAI data'!B5","v":0},null,null,"Sampling date:",{"$f":"'Air FAI data'!B8","v":"00:00:00"}]
["Address:",{"$f":"'Air FAI data'!B6","v":0},null,null,"Date of analysis:",{"$f":"'Air FAI data'!B9","v":"00:00:00"}]
["Sampled by:",{"$f":"'Air FAI data'!B7","v":0},null,null,null,{"$f":"IF('Air FAI analysis'!J6=\"\",\"\",IF('Air FAI analysis'!J6=\"Instrument is calibrated\",\"Instrument was calibrated\",\"Instrument was not calibrated\"))","v":""}]
["Notes:"]
[null,null,null,null,null,"Result category"]
["Sample ID","Test site",null,"Test","Mycometer value /m3","A+","A","B","C","D"]
[{"$f":"'Air FAI analysis'!A14","v":0},{"$f":"'Air FAI data'!B13","v":0},null,"FAI",{"$f":"IF(OR(E12=\"\",E13=\"\"),\"\",IF(E12=\"Clean?\",\"\",IF(E13*'Air FAI analysis'!O14<100,\"Allergen low\",IF((E12/E13)<0.01,\"<1%\",IF(E12=\"\",\"\",IF((E12/E13)>1,\"100%\",E12/E13))))))","v":""},{"$f":"IF(E11=\"\",\"\",IF(E12=\"Rent?\",\"\",IF(E13*'Air FAI analysis'!O14<100,\"\",IF(E11=\"Allergen lav\",\"\",IF('Air FAI data'!N13=\"a+\",\"X\",\"\")))))","v":""},{"$f":"IF(E11=\"\",\"\",IF(E12=\"Rent?\",\"\",IF(E13*'Air FAI analysis'!O14<100,\"\",IF(E11=\"Allergen lav\",\"\",IF('Air FAI data'!N13=\"a\",\"X\",\"\")))))","v":""},{"$f":"IF(E11=\"\",\"\",IF(E12=\"Rent?\",\"\",IF(E13*'Air FAI analysis'!O14<100,\"\",IF(E11=\"Allergen lav\",\"\",IF('Air FAI data'!N13=\"b\",\"X\",\"\")))))","v":""},{"$f":"IF(E11=\"\",\"\",IF(E12=\"Rent?\",\"\",IF(E13*'Air FAI analysis'!O14<100,\"\",IF(E11=\"Allergen lav\",\"\",IF('Air FAI data'!N13=\"c\",\"X\",\"\")))))","v":""},{"$f":"IF(E11=\"\",\"\",IF(E12=\"Rent?\",\"\",IF(E13*'Air FAI analysis'!O14<100,\"\",IF(E11=\"Allergen lav\",\"\",IF('Air FAI data'!N13=\"d\",\"X\",\"\")))))","v":""}]
[null,null,null,"Fungi",{"$f":"'Air FAI data'!G13","v":""},{"$f":"IF(E12=\"Rent?\",\"\",IF('Air FAI data'!M13=\"a+\",\"X\",\"\"))","v":""},{"$f":"IF(E12=\"Rent?\",\"\",IF('Air FAI data'!M13=\"a\",\"X\",\"\"))","v":""},{"$f":"IF(E12=\"Rent?\",\"\",IF('Air FAI data'!M13=\"b\",\"X\",\"\"))","v":""},{"$f":"IF(E12=\"Rent?\",\"\",IF('Air FAI data'!M13=\"c\",\"X\",\"\"))","v":""},{"$f":"IF(E12=\"Rent?\",\"\",IF('Air FAI data'!M13=\"d\",\"X\",\"\"))","v":""}]
[null,null,null,"Allergens",{"$f":"'Air FAI data'!K13","v":""},{"$f":"IF(E12=\"Rent?\",\"\",IF('Air FAI data'!L13=\"a+\",\"X\",\"\"))","v":""},{"$f":"IF(E12=\"Rent?\",\"\",IF('Air FAI data'!L13=\"a\",\"X\",\"\"))","v":""},{"$f":"IF(E12=\"Rent?\",\"\",IF('Air FAI data'!L13=\"b\",\"X\",\"\"))","v":""},{"$f":"IF(E12=\"Rent?\",\"\",IF('Air FAI data'!L13=\"c\",\"X\",\"\"))","v":""},{"$f":"IF(E12=\"Rent?\",\"\",IF('Air FAI data'!L13=\"d\",\"X\",\"\"))","v":""}]
[]
[{"$f":"'Air FAI analysis'!A15","v":0},{"$f":"'Air FAI data'!B14","v":0},null,"FAI",{"$f":"IF(OR(E16=\"\",E17=\"\"),\"\",IF(E16=\"Clean?\",\"\",IF(E17*'Air FAI analysis'!O15<100,\"Allergen low\",IF((E16/E17)<0.01,\"<1%\",IF(E16=\"\",\"\",IF((E16/E17)>1,\"100%\",E16/E17))))))","v":""},{"$f":"IF(E15=\"\",\"\",IF(E16=\"Rent?\",\"\",IF(E17*'Air FAI analysis'!O15<100,\"\",IF(E15=\"Allergen lav\",\"\",IF('Air FAI data'!N14=\"a+\",\"X\",\"\")))))","v":""},{"$f":"IF(E15=\"\",\"\",IF(E16=\"Rent?\",\"\",IF(E17*'Air FAI analysis'!O15<100,\"\",IF(E15=\"Allergen lav\",\"\",IF('Air FAI data'!N14=\"a\",\"X\",\"\")))))","v":""},{"$f":"IF(E15=\"\",\"\",IF(E16=\"Rent?\",\"\",IF(E17*'Air FAI analysis'!O15<100,\"\",IF(E15=\"Allergen lav\",\"\",IF('Air FAI data'!N14=\"b\",\"X\",\"\")))))","v":""},{"$f":"IF(E15=\"\",\"\",IF(E16=\"Rent?\",\"\",IF(E17*'Air FAI analysis'!O15<100,\"\",IF(E15=\"Allergen lav\",\"\",IF('Air FAI data'!N14=\"c\",\"X\",\"\")))))","v":""},{"$f":"IF(E15=\"\",\"\",IF(E16=\"Rent?\",\"\",IF(E17*'Air FAI analysis'!O15<100,\"\",IF(E15=\"Allergen lav\",\"\",IF('Air FAI data'!N14=\"d\",\"X\",\"\")))))","v":""}]
[null,null,null,"Fungi",{"$f":"'Air FAI data'!G14","v":""},{"$f":"IF(E16=\"Rent?\",\"\",IF('Air FAI data'!M14=\"a+\",\"X\",\"\"))","v":""},{"$f":"IF(E16=\"Rent?\",\"\",IF('Air FAI data'!M14=\"a\",\"X\",\"\"))","v":""},{"$f":"IF(E16=\"Rent?\",\"\",IF('Air FAI data'!M14=\"b\",\"X\",\"\"))","v":""},{"$f":"IF(E16=\"Rent?\",\"\",IF('Air FAI data'!M14=\"c\",\"X\",\"\"))","v":""},{"$f":"IF(E16=\"Rent?\",\"\",IF('Air FAI data'!M14=\"d\",\"X\",\"\"))","v":""}]
[null,null,null,"Allergens",{"$f":"'Air FAI data'!K14","v":""},{"$f":"IF(E16=\"Rent?\",\"\",IF('Air FAI data'!L14=\"a+\",\"X\",\"\"))","v":""},{"$f":"IF(E16=\"Rent?\",\"\",IF('Air FAI data'!L14=\"a\",\"X\",\"\"))","v":""},{"$f":"IF(E16=\"Rent?\",\"\",IF('Air FAI data'!L14=\"b\",\"X\",\"\"))","v":""},{"$f":"IF(E16=\"Rent?\",\"\",IF('Air FAI data'!L14=\"c\",\"X\",\"\"))","v":""},{"$f":"IF(E16=\"Rent?\",\"\",IF('Air FAI data'!L14=\"d\",\"X\",\"\"))","v":""}]
[]
[{"$f":"'Air FAI analysis'!A16","v":0},{"$f":"'Air FAI data'!B15","v":0},null,"FAI",{"$f":"IF(OR(E20=\"\",E21=\"\"),\"\",IF(E20=\"Clean?\",\"\",IF(E21*'Air FAI analysis'!O16<100,\"Allergen low\",IF((E20/E21)<0.01,\"<1%\",IF(E20=\"\",\"\",IF((E20/E21)>1,\"100%\",E20/E21))))))","v":""},{"$f":"IF(E19=\"\",\"\",IF(E20=\"Rent?\",\"\",IF(E21*'Air FAI analysis'!O16<100,\"\",IF(E19=\"Allergen lav\",\"\",IF('Air FAI data'!N15=\"a+\",\"X\",\"\")))))","v":""},{"$f":"IF(E19=\"\",\"\",IF(E20=\"Rent?\",\"\",IF(E21*'Air FAI analysis'!O16<100,\"\",IF(E19=\"Allergen lav\",\"\",IF('Air FAI data'!N15=\"a\",\"X\",\"\")))))","v":""},{"$f":"IF(E19=\"\",\"\",IF(E20=\"Rent?\",\"\",IF(E21*'Air FAI analysis'!O16<100,\"\",IF(E19=\"Allergen lav\",\"\",IF('Air FAI data'!N15=\"b\",\"X\",\"\")))))","v":""},{"$f":"IF(E19=\"\",\"\",IF(E20=\"Rent?\",\"\",IF(E21*'Air FAI analysis'!O16<100,\"\",IF(E19=\"Allergen lav\",\"\",IF('Air FAI data'!N15=\"c\",\"X\",\"\")))))","v":""},{"$f":"IF(E19=\"\",\"\",IF(E20=\"Rent?\",\"\",IF(E21*'Air FAI analysis'!O16<100,\"\",IF(E19=\"Allergen lav\",\"\",IF('Air FAI data'!N15=\"d\",\"X\",\"\")))))","v":""}]
[null,null,null,"Fungi",{"$f":"'Air FAI data'!G15","v":""},{"$f":"IF(E20=\"Rent?\",\"\",IF('Air FAI data'!M15=\"a+\",\"X\",\"\"))","v":""},{"$f":"IF(E20=\"Rent?\",\"\",IF('Air FAI data'!M15=\"a\",\"X\",\"\"))","v":""},{"$f":"IF(E20=\"Rent?\",\"\",IF('Air FAI data'!M15=\"b\",\"X\",\"\"))","v":""},{"$f":"IF(E20=\"Rent?\",\"\",IF('Air FAI data'!M15=\"c\",\"X\",\"\"))","v":""},{"$f":"IF(E20=\"Rent?\",\"\",IF('Air FAI data'!M15=\"d\",\"X\",\"\"))","v":""}]
[null,null,null,"Allergens",{"$f":"'Air FAI data'!K15","v":""},{"$f":"IF(E20=\"Rent?\",\"\",IF('Air FAI data'!L15=\"a+\",\"X\",\"\"))","v":""},{"$f":"IF(E20=\"Rent?\",\"\",IF('Air FAI data'!L15=\"a\",\"X\",\"\"))","v":""},{"$f":"IF(E20=\"Rent?\",\"\",IF('Air FAI data'!L15=\"b\",\"X\",\"\"))","v":""},{"$f":"IF(E20=\"Rent?\",\"\",IF('Air FAI data'!L15=\"c\",\"X\",\"\"))","v":""},{"$f":"IF(E20=\"Rent?\",\"\",IF('Air FAI data'!L15=\"d\",\"X\",\"\"))","v":""}]
[]
[{"$f":"'Air FAI analysis'!A17","v":0},{"$f":"'Air FAI data'!B16","v":0},null,"FAI",{"$f":"IF(OR(E24=\"\",E25=\"\"),\"\",IF(E24=\"Clean?\",\"\",IF(E25*'Air FAI analysis'!O17<100,\"Allergen low\",IF((E24/E25)<0.01,\"<1%\",IF(E24=\"\",\"\",IF((E24/E25)>1,\"100%\",E24/E25))))))","v":""},{"$f":"IF(E23=\"\",\"\",IF(E24=\"Rent?\",\"\",IF(E25*'Air FAI analysis'!O17<100,\"\",IF(E23=\"Allergen lav\",\"\",IF('Air FAI data'!N16=\"a+\",\"X\",\"\")))))","v":""},{"$f":"IF(E23=\"\",\"\",IF(E24=\"Rent?\",\"\",IF(E25*'Air FAI analysis'!O17<100,\"\",IF(E23=\"Allergen lav\",\"\",IF('Air FAI data'!N16=\"a\",\"X\",\"\")))))","v":""},{"$f":"IF(E23=\"\",\"\",IF(E24=\"Rent?\",\"\",IF(E25*'Air FAI analysis'!O17<100,\"\",IF(E23=\"Allergen lav\",\"\",IF('Air FAI data'!N16=\"b\",\"X\",\"\")))))","v":""},{"$f":"IF(E23=\"\",\"\",IF(E24=\"Rent?\",\"\",IF(E25*'Air FAI analysis'!O17<100,\"\",IF(E23=\"Allergen lav\",\"\",IF('Air FAI data'!N16=\"c\",\"X\",\"\")))))","v":""},{"$f":"IF(E23=\"\",\"\",IF(E24=\"Rent?\",\"\",IF(E25*'Air FAI analysis'!O17<100,\"\",IF(E23=\"Allergen lav\",\"\",IF('Air FAI data'!N16=\"d\",\"X\",\"\")))))","v":""}]
[null,null,null,"Fungi",{"$f":"'Air FAI data'!G16","v":""},{"$f":"IF(E24=\"Rent?\",\"\",IF('Air FAI data'!M16=\"a+\",\"X\",\"\"))","v":""},{"$f":"IF(E24=\"Rent?\",\"\",IF('Air FAI data'!M16=\"a\",\"X\",\"\"))","v":""},{"$f":"IF(E24=\"Rent?\",\"\",IF('Air FAI data'!M16=\"b\",\"X\",\"\"))","v":""},{"$f":"IF(E24=\"Rent?\",\"\",IF('Air FAI data'!M16=\"c\",\"X\",\"\"))","v":""},{"$f":"IF(E24=\"Rent?\",\"\",IF('Air FAI data'!M16=\"d\",\"X\",\"\"))","v":""}]
[null,null,null,"Allergens",{"$f":"'Air FAI data'!K16","v":""},{"$f":"IF(E24=\"Rent?\",\"\",IF('Air FAI data'!L16=\"a+\",\"X\",\"\"))","v":""},{"$f":"IF(E24=\"Rent?\",\"\",IF('Air FAI data'!L16=\"a\",\"X\",\"\"))","v":""},{"$f":"IF(E24=\"Rent?\",\"\",IF('Air FAI data'!L16=\"b\",\"X\",\"\"))","v":""},{"$f":"IF(E24=\"Rent?\",\"\",IF('Air FAI data'!L16=\"c\",\"X\",\"\"))","v":""},{"$f":"IF(E24=\"Rent?\",\"\",IF('Air FAI data'!L16=\"d\",\"X\",\"\"))","v":""}]
[]
[{"$f":"'Air FAI analysis'!A18","v":0},{"$f":"'Air FAI data'!B17","v":0},null,"FAI",{"$f":"IF(OR(E28=\"\",E29=\"\"),\"\",IF(E28=\"Clean?\",\"\",IF(E29*'Air FAI analysis'!O18<100,\"Allergen low\",IF((E28/E29)<0.01,\"<1%\",IF(E28=\"\",\"\",IF((E28/E29)>1,\"100%\",E28/E29))))))","v":""},{"$f":"IF(E27=\"\",\"\",IF(E28=\"Rent?\",\"\",IF(E29*'Air FAI analysis'!O18<100,\"\",IF(E27=\"Allergen lav\",\"\",IF('Air FAI data'!N17=\"a+\",\"X\",\"\")))))","v":""},{"$f":"IF(E27=\"\",\"\",IF(E28=\"Rent?\",\"\",IF(E29*'Air FAI analysis'!O18<100,\"\",IF(E27=\"Allergen lav\",\"\",IF('Air FAI data'!N17=\"a\",\"X\",\"\")))))","v":""},{"$f":"IF(E27=\"\",\"\",IF(E28=\"Rent?\",\"\",IF(E29*'Air FAI analysis'!O18<100,\"\",IF(E27=\"Allergen lav\",\"\",IF('Air FAI data'!N17=\"b\",\"X\",\"\")))))","v":""},{"$f":"IF(E27=\"\",\"\",IF(E28=\"Rent?\",\"\",IF(E29*'Air FAI analysis'!O18<100,\"\",IF(E27=\"Allergen lav\",\"\",IF('Air FAI data'!N17=\"c\",\"X\",\"\")))))","v":""},{"$f":"IF(E27=\"\",\"\",IF(E28=\"Rent?\",\"\",IF(E29*'Air FAI analysis'!O18<100,\"\",IF(E27=\"Allergen lav\",\"\",IF('Air FAI data'!N17=\"d\",\"X\",\"\")))))","v":""}]
[null,null,null,"Fungi",{"$f":"'Air FAI data'!G17","v":""},{"$f":"IF(E28=\"Rent?\",\"\",IF('Air FAI data'!M17=\"a+\",\"X\",\"\"))","v":""},{"$f":"IF(E28=\"Rent?\",\"\",IF('Air FAI data'!M17=\"a\",\"X\",\"\"))","v":""},{"$f":"IF(E28=\"Rent?\",\"\",IF('Air FAI data'!M17=\"b\",\"X\",\"\"))","v":""},{"$f":"IF(E28=\"Rent?\",\"\",IF('Air FAI data'!M17=\"c\",\"X\",\"\"))","v":""},{"$f":"IF(E28=\"Rent?\",\"\",IF('Air FAI data'!M17=\"d\",\"X\",\"\"))","v":""}]
[null,null,null,"Allergens",{"$f":"'Air FAI data'!K17","v":""},{"$f":"IF(E28=\"Rent?\",\"\",IF('Air FAI data'!L17=\"a+\",\"X\",\"\"))","v":""},{"$f":"IF(E28=\"Rent?\",\"\",IF('Air FAI data'!L17=\"a\",\"X\",\"\"))","v":""},{"$f":"IF(E28=\"Rent?\",\"\",IF('Air FAI data'!L17=\"b\",\"X\",\"\"))","v":""},{"$f":"IF(E28=\"Rent?\",\"\",IF('Air FAI data'!L17=\"c\",\"X\",\"\"))","v":""},{"$f":"IF(E28=\"Rent?\",\"\",IF('Air FAI data'!L17=\"d\",\"X\",\"\"))","v":""}]
[]
[{"$f":"'Air FAI analysis'!A19","v":0},{"$f":"'Air FAI data'!B18","v":0},null,"FAI",{"$f":"IF(OR(E32=\"\",E33=\"\"),\"\",IF(E32=\"Clean?\",\"\",IF(E33*'Air FAI analysis'!O19<100,\"Allergen low\",IF((E32/E33)<0.01,\"<1%\",IF(E32=\"\",\"\",IF((E32/E33)>1,\"100%\",E32/E33))))))","v":""},{"$f":"IF(E31=\"\",\"\",IF(E32=\"Rent?\",\"\",IF(E33*'Air FAI analysis'!O19<100,\"\",IF(E31=\"Allergen lav\",\"\",IF('Air FAI data'!N18=\"a+\",\"X\",\"\")))))","v":""},{"$f":"IF(E31=\"\",\"\",IF(E32=\"Rent?\",\"\",IF(E33*'Air FAI analysis'!O19<100,\"\",IF(E31=\"Allergen lav\",\"\",IF('Air FAI data'!N18=\"a\",\"X\",\"\")))))","v":""},{"$f":"IF(E31=\"\",\"\",IF(E32=\"Rent?\",\"\",IF(E33*'Air FAI analysis'!O19<100,\"\",IF(E31=\"Allergen lav\",\"\",IF('Air FAI data'!N18=\"b\",\"X\",\"\")))))","v":""},{"$f":"IF(E31=\"\",\"\",IF(E32=\"Rent?\",\"\",IF(E33*'Air FAI analysis'!O19<100,\"\",IF(E31=\"Allergen lav\",\"\",IF('Air FAI data'!N18=\"c\",\"X\",\"\")))))","v":""},{"$f":"IF(E31=\"\",\"\",IF(E32=\"Rent?\",\"\",IF(E33*'Air FAI analysis'!O19<100,\"\",IF(E31=\"Allergen lav\",\"\",IF('Air FAI data'!N18=\"d\",\"X\",\"\")))))","v":""}]
[null,null,null,"Fungi",{"$f":"'Air FAI data'!G18","v":""},{"$f":"IF(E32=\"Rent?\",\"\",IF('Air FAI data'!M18=\"a+\",\"X\",\"\"))","v":""},{"$f":"IF(E32=\"Rent?\",\"\",IF('Air FAI data'!M18=\"a\",\"X\",\"\"))","v":""},{"$f":"IF(E32=\"Rent?\",\"\",IF('Air FAI data'!M18=\"b\",\"X\",\"\"))","v":""},{"$f":"IF(E32=\"Rent?\",\"\",IF('Air FAI data'!M18=\"c\",\"X\",\"\"))","v":""},{"$f":"IF(E32=\"Rent?\",\"\",IF('Air FAI data'!M18=\"d\",\"X\",\"\"))","v":""}]
[null,null,null,"Allergens",{"$f":"'Air FAI data'!K18","v":""},{"$f":"IF(E32=\"Rent?\",\"\",IF('Air FAI data'!L18=\"a+\",\"X\",\"\"))","v":""},{"$f":"IF(E32=\"Rent?\",\"\",IF('Air FAI data'!L18=\"a\",\"X\",\"\"))","v":""},{"$f":"IF(E32=\"Rent?\",\"\",IF('Air FAI data'!L18=\"b\",\"X\",\"\"))","v":""},{"$f":"IF(E32=\"Rent?\",\"\",IF('Air FAI data'!L18=\"c\",\"X\",\"\"))","v":""},{"$f":"IF(E32=\"Rent?\",\"\",IF('Air FAI data'!L18=\"d\",\"X\",\"\"))","v":""}]
[]
[{"$f":"'Air FAI analysis'!A20","v":0},{"$f":"'Air FAI data'!B19","v":0},null,"FAI",{"$f":"IF(OR(E36=\"\",E37=\"\"),\"\",IF(E36=\"Clean?\",\"\",IF(E37*'Air FAI analysis'!O20<100,\"Allergen low\",IF((E36/E37)<0.01,\"<1%\",IF(E36=\"\",\"\",IF((E36/E37)>1,\"100%\",E36/E37))))))","v":""},{"$f":"IF(E35=\"\",\"\",IF(E36=\"Rent?\",\"\",IF(E37*'Air FAI analysis'!O20<100,\"\",IF(E35=\"Allergen lav\",\"\",IF('Air FAI data'!N19=\"a+\",\"X\",\"\")))))","v":""},{"$f":"IF(E35=\"\",\"\",IF(E36=\"Rent?\",\"\",IF(E37*'Air FAI analysis'!O20<100,\"\",IF(E35=\"Allergen lav\",\"\",IF('Air FAI data'!N19=\"a\",\"X\",\"\")))))","v":""},{"$f":"IF(E35=\"\",\"\",IF(E36=\"Rent?\",\"\",IF(E37*'Air FAI analysis'!O20<100,\"\",IF(E35=\"Allergen lav\",\"\",IF('Air FAI data'!N19=\"b\",\"X\",\"\")))))","v":""},{"$f":"IF(E35=\"\",\"\",IF(E36=\"Rent?\",\"\",IF(E37*'Air FAI analysis'!O20<100,\"\",IF(E35=\"Allergen lav\",\"\",IF('Air FAI data'!N19=\"c\",\"X\",\"\")))))","v":""},{"$f":"IF(E35=\"\",\"\",IF(E36=\"Rent?\",\"\",IF(E37*'Air FAI analysis'!O20<100,\"\",IF(E35=\"Allergen lav\",\"\",IF('Air FAI data'!N19=\"d\",\"X\",\"\")))))","v":""}]
[null,null,null,"Fungi",{"$f":"'Air FAI data'!G19","v":""},{"$f":"IF(E36=\"Rent?\",\"\",IF('Air FAI data'!M19=\"a+\",\"X\",\"\"))","v":""},{"$f":"IF(E36=\"Rent?\",\"\",IF('Air FAI data'!M19=\"a\",\"X\",\"\"))","v":""},{"$f":"IF(E36=\"Rent?\",\"\",IF('Air FAI data'!M19=\"b\",\"X\",\"\"))","v":""},{"$f":"IF(E36=\"Rent?\",\"\",IF('Air FAI data'!M19=\"c\",\"X\",\"\"))","v":""},{"$f":"IF(E36=\"Rent?\",\"\",IF('Air FAI data'!M19=\"d\",\"X\",\"\"))","v":""}]
[null,null,null,"Allergens",{"$f":"'Air FAI data'!K19","v":""},{"$f":"IF(E36=\"Rent?\",\"\",IF('Air FAI data'!L19=\"a+\",\"X\",\"\"))","v":""},{"$f":"IF(E36=\"Rent?\",\"\",IF('Air FAI data'!L19=\"a\",\"X\",\"\"))","v":""},{"$f":"IF(E36=\"Rent?\",\"\",IF('Air FAI data'!L19=\"b\",\"X\",\"\"))","v":""},{"$f":"IF(E36=\"Rent?\",\"\",IF('Air FAI data'!L19=\"c\",\"X\",\"\"))","v":""},{"$f":"IF(E36=\"Rent?\",\"\",IF('Air FAI data'!L19=\"d\",\"X\",\"\"))","v":""}]
[]
[{"$f":"'Air FAI analysis'!A21","v":0},{"$f":"'Air FAI data'!B20","v":0},null,"FAI",{"$f":"IF(OR(E40=\"\",E41=\"\"),\"\",IF(E40=\"Clean?\",\"\",IF(E41*'Air FAI analysis'!O21<100,\"Allergen low\",IF((E40/E41)<0.01,\"<1%\",IF(E40=\"\",\"\",IF((E40/E41)>1,\"100%\",E40/E41))))))","v":""},{"$f":"IF(E39=\"\",\"\",IF(E40=\"Rent?\",\"\",IF(E41*'Air FAI analysis'!O21<100,\"\",IF(E39=\"Allergen lav\",\"\",IF('Air FAI data'!N20=\"a+\",\"X\",\"\")))))","v":""},{"$f":"IF(E39=\"\",\"\",IF(E40=\"Rent?\",\"\",IF(E41*'Air FAI analysis'!O21<100,\"\",IF(E39=\"Allergen lav\",\"\",IF('Air FAI data'!N20=\"a\",\"X\",\"\")))))","v":""},{"$f":"IF(E39=\"\",\"\",IF(E40=\"Rent?\",\"\",IF(E41*'Air FAI analysis'!O21<100,\"\",IF(E39=\"Allergen lav\",\"\",IF('Air FAI data'!N20=\"b\",\"X\",\"\")))))","v":""},{"$f":"IF(E39=\"\",\"\",IF(E40=\"Rent?\",\"\",IF(E41*'Air FAI analysis'!O21<100,\"\",IF(E39=\"Allergen lav\",\"\",IF('Air FAI data'!N20=\"c\",\"X\",\"\")))))","v":""},{"$f":"IF(E39=\"\",\"\",IF(E40=\"Rent?\",\"\",IF(E41*'Air FAI analysis'!O21<100,\"\",IF(E39=\"Allergen lav\",\"\",IF('Air FAI data'!N20=\"d\",\"X\",\"\")))))","v":""}]
[null,null,null,"Fungi",{"$f":"'Air FAI data'!G20","v":""},{"$f":"IF(E40=\"Rent?\",\"\",IF('Air FAI data'!M20=\"a+\",\"X\",\"\"))","v":""},{"$f":"IF(E40=\"Rent?\",\"\",IF('Air FAI data'!M20=\"a\",\"X\",\"\"))","v":""},{"$f":"IF(E40=\"Rent?\",\"\",IF('Air FAI data'!M20=\"b\",\"X\",\"\"))","v":""},{"$f":"IF(E40=\"Rent?\",\"\",IF('Air FAI data'!M20=\"c\",\"X\",\"\"))","v":""},{"$f":"IF(E40=\"Rent?\",\"\",IF('Air FAI data'!M20=\"d\",\"X\",\"\"))","v":""}]
[null,null,null,"Allergens",{"$f":"'Air FAI data'!K20","v":""},{"$f":"IF(E40=\"Rent?\",\"\",IF('Air FAI data'!L20=\"a+\",\"X\",\"\"))","v":""},{"$f":"IF(E40=\"Rent?\",\"\",IF('Air FAI data'!L20=\"a\",\"X\",\"\"))","v":""},{"$f":"IF(E40=\"Rent?\",\"\",IF('Air FAI data'!L20=\"b\",\"X\",\"\"))","v":""},{"$f":"IF(E40=\"Rent?\",\"\",IF('Air FAI data'!L20=\"c\",\"X\",\"\"))","v":""},{"$f":"IF(E40=\"Rent?\",\"\",IF('Air FAI data'!L20=\"d\",\"X\",\"\"))","v":""}]
[]
[]
[null,null,null,null,"Analyzed by:",{"$f":"'Air FAI data'!H28","v":0}]
[null,null,null,null,"Company name:",{"$f":"'Air FAI data'!H29","v":0}]
[{"$f":"'Front page'!A40","v":"Version US February 2022, copyright © Mycometer A/S, all rights reserved"},null,null,null,"Mycometer certification number:",{"$f":"'Air FAI data'!H30","v":0}]
[]
[]
[]
[]
[]
["Mycometer air FAI"]
["FAI value","Interpretation"]
[null,"Fungi to allergen index = FAI"]
["A+","The FAI value is low; the level of fungi is very low compared to the level of total allergens. This indicates that there is no source (fungal growth) in the sampling area or in adjacent spaces."]
["Low"]
["≤ 5%"]
["A","The FAI value is normal; the level of fungi compared to the level of total allergens is in the normal range. This indicates that there is no source (fungal growth) in the sampling area or in adjacent spaces."]
["Normal"]
["6-14%"]
["B","The FAI value is elevated; the level of fungi compared to the level of total allergens is in the high end of the normal range and is considered inconclusive. The result indicates that additional investigation is required, including thorough inspection for minor visual sources, or hidden fungal growth."]
["Elevated"]
["15-22%"]
["C","The FAI value is high; the level of fungi compared to the level of total allergens is high. This indicates the presence of a fungal source (fungal growth) in the sample area or adjacent spaces"]
["High"]
["23-35%"]
["D","The FAI value is very high; the level of fungi compared to the level of total allergens is very high. This indicates the presence of a significant fungal source (fungal growth) in the sample area or adjacent spaces."]
["Very high"]
[">35%"]
[]
["Mycometer air FAI or Fungal to Allergen Index measures the ratio between two markers. One marker that is a measure of the level of fungal particles such as fungal spores, micro-, and hyphal fragments, and the other marker is a measure of the level of total allergens, such as dust mites, pollen, fungi, insect parts, pet dander etc. The ratio between these markers reveals whether there is a fungal source affecting the indoor climate. The interpretation is based on the levels found in normal non-problem buildings with no visual signs (or smell) of fungal growth or moisture problems and buildings with moisture and/or fungal growth. "]
[]
["Activated air sampling means that a standard protocol defined by Mycometer A/S has been used, where settled dust particles are resuspended in the air. Activated sampling has been shown to give representative and reproducible sample results. "]
[]
["Hidden fungal growth e.g. within wall cavities or below the floor cannot always be revealed by use of air samples or dust samples independent of what method is being used. If the fungal growth is effectively encapsulated so that no fungal particles can escape or has no contaminant pathway into the space, the hidden fungal growth cannot be revealed. In practice it is not possible to prove the absence of fungal growth."]
[]
[]
[]
[]
[]
[]
[]
[]
["Mycometer air Fungi"]
["MAF value","Interpretation"]
[null,"Fungi"]
["A+","The level of fungi is low and corresponds to what is found in rooms/buildings without fungal (mould) growth and/or moisture problems and a high cleaning standard."]
["Low"]
["≤ 35"]
["A","The level of fungi is normal and corresponds to the level typically found in rooms/buildings without fungal (mould) growth or moisture problems and a normal cleaning standard."]
["Normal"]
["36-145"]
["B","The level of fungi is elevated and corresponds to what is found in rooms/buildings with an inadequate cleaning standard. If the cleaning standard is good or very good, a category B result should lead to an extra thorough inspection to exclude the presence of a fungal source (fungal growth)."]
["Elevated"]
["146-240"]
["C","The level of fungi is high, which means that there is a fungal source (fungal growth) or a very poor cleaning standard. The high level of fungi should lead to a thorough inspection to determine the source."]
["High"]
["241-680"]
["D","The level of fungi is very high, which means that there is a fungal source (fungal growth) or a very poor cleaning standard. The very high level of fungi should lead to a thorough inspection to determine the source."]
["Very high"]
[">680"]
[]
[]
["Mycometer air Allergen"]
["MAA value","Interpretation"]
[null,"Total allergens (dust mites, pollen, fungi, pet dander, skin cells etc.)"]
["A+","The level of allergens is low, corresponding to what is found in rooms/buildings with a high cleaning standard. "]
["Low"]
["≤ 275"]
["A","The level of allergens is normal, corresponding to what is found in rooms/buildings with a normal cleaning standard."]
["Normal"]
["276-1,375"]
["B","The level of allergens is elevated, corresponding to what is found in normal rooms/building with a normal to poor cleaning standard."]
["Elevated"]
["1.376-2,300"]
["C","The level of allergens is high. This is often an indication of an inadequate cleaning standard."]
["High"]
["2,301-7,750"]
["D","The level of allergens is very high. This is often an indication of a highly inadequate cleaning standard and/or a significant influence from allergen sources such as pets, mould, dust mites etc."]
["Very high"]
[">7,750"]